Workbook

Sheet Profile
A1: dk;kZy;& | C1: lhchbZvks chdkusj
A2: eksgj& | C2: Budget Estemate | F2: foHkkx dk uke | G2: f'k{kk foHkkx
A3: lhchbZvks | C3: 2202-02-109-01-00 | F3: vkWfQl vkbZMh | G3: uke MhMhvks | I3: uEcj
A4: lexz f'k{kk | F4: 2405 | G4: izHkkr 'kekZ | I4: 9414318727
A5: chdkusj | D5: 2025&2026 | G5: rS;kj drkZ
A6: ctV en eq[; 'kh"kZ | G6: dqynhi dqekj | I6: 9799001169
C7: UnProtect All Worksheet PASSWORD - sumit | F7: onhZ HkRrk iq:"k dkfeZd la[;k | H7: 0 | J7: 2000 | K7: =J7*H7 -> 0 | L7: =K7+K8 -> 0
F8: onhZ HkRrk efgyk dkfeZd la[;k | H8: 0 | J8: 2350 | K8: =J8*H8 -> 0
A9: vkxkeh osru o`f} fnukad | C9: 2025-07-01 | F9: cksul dkfeZdks dh la[;k | H9: 0 | K9: vf/kd tkudkjh ds fy, bl youtube link ;k JOURNEY SUMIT GIRI youtube channel dk bLrseky djsa
A10: Ldhe dk uke | C10: LVsV Q.M | F10: dSf'k;j HkRrk dkfeZd dh la[;k | H10: 0 | M10: bl fyax dks dkWih djds xaqxy esa vkWiu djus ds ckn ;wV~;wc pSuy ij fofM;ks ns[kss
A11: ekax la[;k | C11: 20 | F11: f};kax dkfeZdksa dh la[;k | H11: 0 | K11: https://youtu.be/dN7M4uHGLqE
A12: ctV Lohd`fr esa dk;kZy; @ fo|ky; dh Ø-la- | C12: 25
E13: Arear Month | F13: 2 | G13: egaxkbZ HkÙkk nj | H13: 0.5 | I13: DA Arr. | J13: 0 | K13: HRA | L13: 0.09 | O13: JOUREY SUMIT GIRI
A15: xr rhu o"ksksZa ds vk; ,oa O;; dk fooj.k | B15: gsM | F15: 2021-22 | G15: 2022-23 | H15: 2023-24 | I15: 08/23 to 03/24 | J15: 04/24 to 07/24 | K15: la'kksf/kr vuqeku 08@2024 ls 03@2025 | L15: vk; vuqeku 2025&2026 | O15: sumitgiri777
A16: vk;
A17: f'k{k.k 'kqYd | B17: 0202&02 | C17: 0 | D17: 0 | E17: 0 | F17: 0 | G17: 0 | H17: 0 | I17: 0 | J17: 0 | K17: 0 | L17: 0
A18: Vh-lh- | B18: 0202&02 | F18: 0 | G18: 0 | H18: 0 | I18: 0 | J18: 0 | K18: 0 | L18: 0
A19: izos'k 'kqYd | B19: 0202&02 | F19: 0 | G19: 0 | H19: 0 | I19: 0 | J19: 0 | K19: 0 | L19: 0
A20: vuqi;ksxh lkeku ds fuLrkj.k ls vk; | B20: 0202&02
A21: fofo/k | B21: 0202&02
A22: vU; | B22: 0202&02 | H22: 0
A24: O;; | C24: Lohd`r ctV | E24: 2024&2025 | F24: [kpksZa dk fooj.k | I24: O;; 08@23 ls 03@24 | K24: O;; 04@24 ls 07@24 | N24: lEHkkfor O;; | O24: vk; vuqeku 2024&2025 | P24: 08/23 to 03/24 | Q24: 04/24 to 07/24 | AJ24: dqy ;ksx | AK24: la'kksf/kr vuqeku ¼pkyw o"kZ½ | AL24: vk;&O;; vuqeku ¼vkxkeh o"kZ½
A25: en | B25: lc gsM | C25: dqy ;ksx | D25: jkT; fuf/k | E25: dsUnzh; lgk;rk | F25: 2021-22 | G25: 2022-23 | H25: 23&24 esa ekpZ2024 dk th-,-19 | I25: jkT; fuf/k | J25: dsUnzh; lgk;rk | K25: jkT; fuf/k | L25: dsUnzh; lgk;rk
A26: laosru | B26: 1 | C26: =SUM(D26+E26) -> 0 | D26: 0 | E26: 0 | F26: 0 | G26: 0 | H26: 0 | I26: 0 | J26: 0 | K26: 155000 | L26: 0 | N26: =$O$87 -> 834182 | O26: =N87 -> 859961 | P26: =I26+J26 -> 0 | Q26: =K26+L26 -> 155000 | AJ26: =SUM(Q26+N26) -> 989182 | AK26: =$O$87 -> 834182 | AL26: =$N$87 -> 859961
A27: ;k=k O;; | B27: 3 | C27: =SUM(D27+E27) -> 0 | D27: 0 | E27: 0 | F27: 0 | G27: 0 | H27: 0 | I27: 0 | J27: 0 | K27: 0 | L27: 0 | P27: =I27+J27 -> 0 | Q27: 0 | AJ27: 0 | AK27: 0 | AL27: 0
A28: fpfdRlk O;; | B28: 4 | C28: 0 | D28: 0 | E28: 0 | F28: 0 | G28: 0 | H28: 0 | I28: 0 | J28: 0 | K28: 0 | L28: 0 | P28: 0 | Q28: 0 | AJ28: 0 | AK28: 0 | AL28: 0
A29: dk;kZy; O;; | B29: 5 | C29: 0 | D29: 0 | E29: 0 | F29: 0 | G29: 0 | H29: 0 | I29: 0 | J29: 0 | K29: 0 | L29: 0 | P29: 0 | Q29: 0 | AJ29: 0 | AK29: 0 | AL29: 0
A30: fdjk;k dj jk;fYV | B30: 9 | C30: 0 | D30: 0 | E30: 0 | F30: 0 | G30: 0 | H30: 0 | I30: 0 | J30: 0 | K30: 0 | L30: 0 | P30: 0 | Q30: 0 | AJ30: 0 | AK30: 0 | AL30: 0
A31: e'khujh lkt lkeku | B31: 20 | C31: 0 | D31: 0 | E31: 0 | F31: 0 | G31: 0 | H31: 0 | I31: 0 | J31: 0 | K31: 0 | L31: 0 | P31: 0 | Q31: 0 | AJ31: 0 | AK31: 0 | AL31: 0
A32: iqLrdky; | B32: 31 | C32: 0 | D32: 0 | E32: 0 | F32: 0 | G32: 0 | H32: 0 | I32: 0 | J32: 0 | K32: 0 | L32: 0 | P32: 0 | Q32: 0 | AJ32: 0 | AK32: 0 | AL32: 0
A33: iz;ksx'kkyk | B33: 33 | C33: 0 | D33: 0 | E33: 0 | F33: 0 | G33: 0 | H33: 0 | I33: 0 | J33: 0 | K33: 0 | L33: 0 | P33: 0 | Q33: 0 | AJ33: 0 | AK33: 0 | AL33: 0
A34: ofnZ;ka | B34: 37 | C34: 0 | E34: 0 | F34: 0 | G34: 0 | J34: 0 | K34: 0 | L34: 0 | N34: =$L$7 -> 0 | P34: 0 | Q34: 0 | AJ34: 0 | AK34: =$L$7 -> 0 | AL34: =$L$7 -> 0
A35: vU; izHkkj | B35: 28 | C35: 0 | D35: 0 | E35: 0 | F35: 0 | G35: 0 | H35: 0 | I35: 0 | J35: 0 | K35: 0 | L35: 0 | P35: 0 | Q35: 0 | AJ35: 0 | AK35: 0 | AL35: 0
A36: foHkkxh;lsokvksa ij fof'k"V O;; | B36: 57 | C36: 0 | D36: 0 | E36: 0 | F36: 0 | G36: 0 | H36: 0 | I36: 0 | J36: 0 | K36: 0 | L36: 0 | P36: 0 | Q36: 0 | AJ36: 0 | AK36: 0 | AL36: 0
A37: ;ksx | C37: =SUM(C26:C36) -> 0 | D37: =SUM(D26:D36) -> 0 | E37: 0 | F37: 0 | G37: 0 | H37: 0 | I37: 0 | J37: 0 | K37: 155000 | L37: 0 | AK37: =SUM(AK26:AK36) -> 834182 | AL37: 859961
A38: o"kZ 2025&2026 ds fy, jsUt ds vuqlkj laosru dh jkf'k | F38: OID | G38: =$F$4 -> 2405 | N38: BE 2025-2026
A39: dk;kZy; %& | D39: =$C$1 -> lhchbZvks chdkusj | H39: =$C$3 -> 2202-02-109-01-00 | K39: =$C$10 -> LVsV Q.M | M39: =$D$5 -> 2025&2026 | O39: RE 2024-2025
A41: ys[kk 'kh"kZd ¼foLr`r 'kh"kZ½ | B41: Øe la[;k | C41: dkfeZd dk uke | E41: deZpkjh vkbZ Mh | F41: thih,Q@,uih,l@izku uEcj | G41: in | H41: in dk Lohd`r osru | J41: ctV dh izkjfEHkd frfFk ;kfu 1ekpZ2025 dks deZpkjh dk osru | K41: igyh ekpZ ls vfUre Qjojh ds fy;s fu/kkZfjr jde | L41: o`f) tks bl vof/k esa gksxh | N41: vkxkeh o"kZ 2025&26 ds fy;s jde ¼dkye 8$10½ | O41: pkyw o"kZ ds fy;s la'kksf/kr vuqeku 2024&25 | P41: fo'ks"k fooj.k | R41: vkxkeh osru o`f) fnukad
H42: xzsM is@ ysoy | L42: frfFk o`f) | M42: jde o`f) | R42: =$C$9 -> 2025-07-01
B46: 1 | D46: 2 | E46: 3 | F46: 14 | G46: 4 | H46: 5 | I46: 6 | J46: 7 | K46: 8 | L46: 9 | M46: 10 | N46: 11 | O46: 12 | P46: 13
A47: jktif=r | B47: 1 | C47: Jh | D47: izHkkr 'kekZ | E47: RJGA198635002357 | F47: 543895 | G47: iz/kkukpk;Z | H47: ysoy | I47: 16 | J47: 42500 | K47: =J47*12 -> 510000 | L47: =R42 -> 2025-07-01 | M47: =P47*8 -> 10400 | N47: =K47+M47 -> 520400 | O47: =N47-P47*12 -> 504800 | P47: =S47 -> 1300 | S47: =ROUND(T47,-2) -> 1300 | T47: =J47*3/100 -> 1275 | V47: =Y47-X47 -> 42484 | W47: =IF(R42>=DATE(2017,7,1),CEILING(Y47*3%,10)+V47,V47) -> 43764 | X47: =I47 -> 16 | Y47: =J47 -> 42500 | Z47: =SUM(W47:X47) -> 43780 | AA47: =Z47-Y47 -> 1280 | AC47: =J47 -> 42500 | AD47: =AC47*3/100 -> 1275 | AE47: =ROUNDUP(AD47,-10) -> 10000000000 | AF47: =AC47+AE47 -> 10000042500 | AI47: =AF47-J47 -> 10000000000
A48: jktif=r | B48: 1 | C48: Jh | G48: O;k[;krk | H48: ysoy | I48: 12 | J48: 0 | K48: =J48*12 -> 0 | L48: =L47 -> 2025-07-01 | M48: =P48*8 -> 0 | N48: =K48+M48 -> 0 | O48: =N48-P48*12 -> 0 | P48: =S48 -> 0 | S48: =ROUND(T48,-2) -> 0 | T48: =J48*3/100 -> 0 | V48: =Y48-X48 -> -12 | W48: =IF(R42>=DATE(2017,7,1),CEILING(Y48*3%,10)+V48,V48) -> -12 | X48: =I48 -> 12 | Y48: =J48 -> 0 | Z48: =SUM(W48:X48) -> 0 | AA48: =Z48-Y48 -> 0 | AC48: =J48 -> 0 | AD48: =AC48*3/100 -> 0 | AE48: =ROUNDUP(AD48,-1) -> 0 | AF48: =AC48+AE48 -> 0 | AI48: =AF48-J48 -> 0
A49: jktif=r | B49: 2 | C49: Jherh | G49: O;k[;krk | H49: ysoy | I49: 12 | J49: 0 | K49: 0 | L49: =L47 -> 2025-07-01 | M49: 0 | N49: 0 | O49: =N49-P49*12 -> 0 | P49: 0 | S49: 0 | T49: 0 | V49: -12 | W49: =IF(R42>=DATE(2017,7,1),CEILING(Y49*3%,10)+V49,V49) -> -12 | X49: 12 | Y49: 0 | Z49: 0 | AA49: 0 | AC49: 0 | AD49: 0 | AE49: 0 | AF49: 0 | AI49: 0
A50: jktif=r | B50: 3 | C50: Jh | G50: O;k[;krk | H50: ysoy | I50: 12 | J50: 0 | K50: 0 | L50: =L49 -> 2025-07-01 | M50: =P50*8 -> 0 | N50: =K50+M50 -> 0 | O50: 0 | P50: 0 | S50: 0 | T50: 0 | V50: -12 | W50: =IF(R42>=DATE(2017,7,1),CEILING(Y50*3%,10)+V50,V50) -> -12 | X50: 12 | Y50: 0 | Z50: 0 | AA50: 0 | AC50: 0 | AD50: 0 | AE50: 0 | AF50: 0 | AI50: 0
A51: jktif=r | B51: 4 | C51: Jh | G51: O;k[;krk | H51: ysoy | I51: 12 | J51: 0 | K51: 0 | L51: =L49 -> 2025-07-01 | M51: 0 | N51: 0 | O51: 0 | P51: 0 | S51: 0 | T51: 0 | V51: -12 | W51: =IF(R42>=DATE(2017,7,1),CEILING(Y51*3%,10)+V51,V51) -> -12 | X51: 12 | Y51: 0 | Z51: 0 | AA51: =Z51-Y51 -> 0 | AC51: 0 | AD51: 0 | AE51: 0 | AF51: 0 | AI51: 0
A52: jktif=r | B52: 5 | C52: Jh | G52: O;k[;krk | H52: ysoy | I52: 12 | J52: 0 | K52: 0 | L52: =L51 -> 2025-07-01 | M52: 0 | N52: 0 | O52: 0 | P52: 0 | S52: 0 | T52: 0 | V52: -12 | W52: =IF(R42>=DATE(2017,7,1),CEILING(Y52*3%,10)+V52,V52) -> -12 | X52: 12 | Y52: =J52 -> 0 | Z52: =SUM(W52:X52) -> 0 | AA52: 0 | AC52: 0 | AD52: 0 | AE52: 0 | AF52: 0 | AI52: 0
A53: jktif=r | B53: 6 | C53: Jh | G53: O;k[;krk | H53: ysoy | I53: 12 | J53: 0 | K53: 0 | L53: =L51 -> 2025-07-01 | M53: 0 | N53: 0 | O53: 0 | P53: 0 | S53: 0 | T53: 0 | V53: =Y53-X53 -> -12 | W53: =IF(R42>=DATE(2017,7,1),CEILING(Y53*3%,10)+V53,V53) -> -12 | X53: =I53 -> 12 | Y53: 0 | Z53: 0 | AA53: 0 | AC53: 0 | AD53: 0 | AE53: 0 | AF53: 0 | AI53: 0
A54: vjktif=r | B54: 1 | C54: Jh | G54: ofj"B v/;kid | H54: ysoy | I54: 11 | J54: 0 | K54: 0 | L54: =L53 -> 2025-07-01 | M54: =P54*8 -> 0 | N54: =K54+M54 -> 0 | O54: =N54-P54*12 -> 0 | P54: 0 | S54: 0 | T54: 0 | V54: -11 | W54: =IF(R42>=DATE(2017,7,1),CEILING(Y54*3%,10)+V54,V54) -> -11 | X54: 11 | Y54: 0 | Z54: 0 | AA54: 0 | AC54: 0 | AD54: 0 | AE54: 0 | AF54: 0 | AI54: 0
A55: vjktif=r | B55: 2 | C55: Jh | G55: ofj"B v/;kid | H55: ysoy | I55: 11 | J55: 0 | K55: 0 | L55: 2025-07-01 | M55: 0 | N55: 0 | O55: 0 | P55: 0 | S55: 0 | T55: 0 | V55: -11 | W55: =IF(R42>=DATE(2017,7,1),CEILING(Y55*3%,10)+V55,V55) -> -11 | X55: 11 | Y55: 0 | Z55: 0 | AA55: 0 | AC55: 0 | AD55: 0 | AE55: 0 | AF55: 0 | AI55: 0
A56: vjktif=r | B56: 3 | C56: Jh | G56: ofj"B v/;kid | H56: ysoy | I56: 11 | J56: 0 | K56: 0 | L56: 2025-07-01 | M56: 0 | N56: 0 | O56: 0 | P56: 0 | S56: 0 | T56: 0 | V56: -11 | W56: =IF(R42>=DATE(2017,7,1),CEILING(Y56*3%,10)+V56,V56) -> -11 | X56: 11 | Y56: 0 | Z56: 0 | AA56: 0 | AC56: 0 | AD56: 0 | AE56: 0 | AF56: 0 | AI56: 0
A57: vjktif=r | B57: 4 | C57: Jh | G57: ofj"B v/;kid | H57: ysoy | I57: 11 | J57: 0 | K57: 0 | L57: 2025-07-01 | M57: 0 | N57: 0 | O57: 0 | P57: 0 | S57: 0 | T57: 0 | V57: =Y57-X57 -> -11 | W57: =IF(R42>=DATE(2017,7,1),CEILING(Y57*3%,10)+V57,V57) -> -11 | X57: 11 | Y57: 0 | Z57: =SUM(W57:X57) -> 0 | AA57: 0 | AC57: 0 | AD57: 0 | AE57: 0 | AF57: 0 | AI57: 0
A58: vjktif=r | B58: 5 | C58: Jh | G58: ofj"B v/;kid | H58: ysoy | I58: 11 | J58: 0 | K58: 0 | L58: 2025-07-01 | M58: 0 | N58: 0 | O58: 0 | P58: 0 | S58: 0 | T58: 0 | V58: =Y58-X58 -> -11 | W58: =IF(R42>=DATE(2017,7,1),CEILING(Y58*3%,10)+V58,V58) -> -11 | X58: 11 | Y58: 0 | Z58: =SUM(W58:X58) -> 0 | AA58: 0 | AC58: 0 | AD58: 0 | AE58: 0 | AF58: 0 | AI58: 0
A59: vjktif=r | B59: 6 | C59: Jh | G59: ofj"B v/;kid | H59: ysoy | I59: 11 | J59: 0 | K59: 0 | L59: 2025-07-01 | M59: 0 | N59: 0 | O59: 0 | P59: 0 | S59: 0 | T59: 0 | V59: =Y59-X59 -> -11 | W59: =IF(R42>=DATE(2017,7,1),CEILING(Y59*3%,10)+V59,V59) -> -11 | X59: 11 | Y59: 0 | Z59: =SUM(W59:X59) -> 0 | AA59: 0 | AC59: 0 | AD59: 0 | AE59: 0 | AF59: 0 | AI59: 0
A60: vjktif=r | B60: a1 | C60: Jh | G60: v/;kid | H60: ysoy | I60: 10 | J60: 0 | K60: 0 | L60: 2025-07-01 | M60: 0 | N60: 0 | O60: 0 | P60: 0 | S60: 0 | T60: 0 | V60: =Y60-X60 -> -10 | W60: =IF(R42>=DATE(2017,7,1),CEILING(Y60*3%,10)+V60,V60) -> -10 | X60: 10 | Y60: 0 | Z60: =SUM(W60:X60) -> 0 | AA60: =Z60-Y60 -> 0 | AC60: 0 | AD60: 0 | AE60: 0 | AF60: 0 | AI60: 0
A61: vjktif=r | B61: 2 | C61: Jh | G61: v/;kid | H61: ysoy | I61: 10 | J61: 0 | K61: =J61*12 -> 0 | L61: 2025-07-01 | M61: =P61*8 -> 0 | N61: =K61+M61 -> 0 | O61: =N61-P61*12 -> 0 | P61: 0 | S61: 0 | T61: 0 | V61: =Y61-X61 -> -10 | W61: =IF(R42>=DATE(2017,7,1),CEILING(Y61*3%,10)+V61,V61) -> -10 | X61: =I61 -> 10 | Y61: =J61 -> 0 | Z61: =SUM(W61:X61) -> 0 | AA61: =Z61-Y61 -> 0 | AC61: =J61 -> 0 | AD61: =AC61*3/100 -> 0 | AE61: =ROUNDUP(AD61,-1) -> 0 | AF61: =AC61+AE61 -> 0 | AI61: =AF61-J61 -> 0
A62: vjktif=r | B62: 3 | C62: Jh | G62: v/;kid | H62: ysoy | I62: 10 | J62: 0 | K62: 0 | L62: 2025-07-01 | M62: =P62*8 -> 0 | N62: 0 | O62: =N62-P62*12 -> 0 | P62: 0 | S62: 0 | T62: 0 | V62: -10 | W62: =IF(R42>=DATE(2017,7,1),CEILING(Y62*3%,10)+V62,V62) -> -10 | X62: 10 | Y62: 0 | Z62: 0 | AA62: 0 | AC62: 0 | AD62: 0 | AE62: 0 | AF62: 0 | AI62: 0
A63: vjktif=r | B63: 1 | C63: Jh | G63: 'kk0f'k{kd | H63: ysoy | I63: 10 | J63: 0 | K63: =J63*12 -> 0 | L63: 2025-07-01 | M63: =P63*8 -> 0 | N63: =K63+M63 -> 0 | O63: =N63-P63*12 -> 0 | P63: 0 | S63: 0 | T63: 0 | V63: =Y63-X63 -> -10 | W63: =IF(R42>=DATE(2017,7,1),CEILING(Y63*3%,10)+V63,V63) -> -10 | X63: =I63 -> 10 | Y63: =J63 -> 0 | Z63: =SUM(W63:X63) -> 0 | AA63: =Z63-Y63 -> 0 | AC63: =J63 -> 0 | AD63: =AC63*3/100 -> 0 | AE63: =ROUNDUP(AD63,-1) -> 0 | AF63: =AC63+AE63 -> 0 | AI63: =AF63-J63 -> 0
A64: vjktif=r | B64: 1 | C64: Jh | G64: dEi;wVj vuqns'kd | H64: ysoy | I64: 8 | J64: 0 | K64: 0 | L64: 2025-07-01 | M64: 0 | N64: 0 | O64: 0 | P64: 0 | S64: 0 | T64: 0 | V64: =Y64-X64 -> -8 | W64: =IF(R42>=DATE(2017,7,1),CEILING(Y64*3%,10)+V64,V64) -> -8 | X64: 8 | Y64: 0 | Z64: =SUM(W64:X64) -> 0 | AA64: 0 | AC64: 0 | AD64: 0 | AE64: 0 | AF64: 0 | AI64: 0
A65: vjktif=r | B65: 1 | C65: Jh | G65: iz'kklfud vf/kdkjh | H65: ysoy | I65: 15 | J65: 0 | K65: =J65*12 -> 0 | L65: 2025-07-01 | M65: =P65*8 -> 0 | N65: =K65+M65 -> 0 | O65: =N65-P65*12 -> 0 | P65: 0 | S65: 0 | T65: 0 | V65: =Y65-X65 -> -15 | W65: =IF(R42>=DATE(2017,7,1),CEILING(Y65*3%,10)+V65,V65) -> -15 | X65: =I65 -> 15 | Y65: =J65 -> 0 | Z65: =SUM(W65:X65) -> 0 | AA65: =Z65-Y65 -> 0 | AC65: =J65 -> 0 | AD65: =AC65*3/100 -> 0 | AE65: =ROUNDUP(AD65,-1) -> 0 | AF65: =AC65+AE65 -> 0 | AI65: =AF65-J65 -> 0
A66: vjktif=r | B66: 1 | C66: Jh | G66: vfrfjDr iz0v0 | H66: ysoy | I66: 11 | J66: 0 | K66: =J66*12 -> 0 | L66: 2025-07-01 | M66: =P66*8 -> 0 | N66: =K66+M66 -> 0 | O66: =N66-P66*12 -> 0 | P66: 0 | S66: 0 | T66: 0 | V66: =Y66-X66 -> -11 | W66: =IF(R42>=DATE(2017,7,1),CEILING(Y66*3%,10)+V66,V66) -> -11 | X66: =I66 -> 11 | Y66: =J66 -> 0 | Z66: =SUM(W66:X66) -> 0 | AA66: =Z66-Y66 -> 0 | AC66: =J66 -> 0 | AD66: =AC66*3/100 -> 0 | AE66: =ROUNDUP(AD66,-1) -> 0 | AF66: =AC66+AE66 -> 0 | AI66: =AF66-J66 -> 0
A67: vjktif=r | B67: 1 | C67: Jh | G67: lgk;d iz0v0 | H67: ysoy | I67: 10 | J67: 0 | K67: 0 | L67: 2025-07-01 | M67: 0 | N67: 0 | O67: 0 | P67: 0 | S67: 0 | T67: 0 | V67: -10 | W67: =IF(R42>=DATE(2017,7,1),CEILING(Y67*3%,10)+V67,V67) -> -10 | X67: 10 | Y67: 0 | Z67: 0 | AA67: 0 | AC67: 0 | AD67: 0 | AE67: 0 | AF67: 0 | AI67: 0
A68: vjktif=r | B68: 1 | C68: Jh | G68: ofj"B lgk;d | H68: ysoy | I68: 8 | J68: 0 | K68: 0 | L68: 2025-07-01 | M68: 0 | N68: 0 | O68: 0 | P68: 0 | S68: 0 | T68: 0 | V68: -8 | W68: =IF(R42>=DATE(2017,7,1),CEILING(Y68*3%,10)+V68,V68) -> -8 | X68: 8 | Y68: 0 | Z68: 0 | AA68: 0 | AC68: 0 | AD68: 0 | AE68: 0 | AF68: 0 | AI68: 0
A69: vjktif=r | B69: 1 | C69: Jh | G69: dfu"B lgk;d | H69: ysoy | I69: 5 | J69: 0 | K69: 0 | L69: 2025-07-01 | M69: 0 | N69: 0 | O69: 0 | P69: 0 | S69: 0 | T69: 0 | V69: -5 | W69: =IF(R42>=DATE(2017,7,1),CEILING(Y69*3%,10)+V69,V69) -> -5 | X69: 5 | Y69: 0 | Z69: 0 | AA69: 0 | AC69: 0 | AD69: 0 | AE69: 0 | AF69: 0 | AI69: 0
A70: vjktif=r | B70: 1 | C70: Jh | G70: lgk;d deZpkjh | H70: ysoy | I70: 1 | J70: 0 | K70: 0 | L70: 2025-07-01 | M70: 0 | N70: 0 | O70: 0 | P70: 0 | S70: 0 | T70: 0 | V70: -1 | W70: =IF(R42>=DATE(2017,7,1),CEILING(Y70*3%,10)+V70,V70) -> -1 | X70: 1 | Y70: 0 | Z70: 0 | AA70: 0 | AC70: 0 | AD70: 0 | AE70: 0 | AF70: 0 | AI70: 0
A71: vjktif=r | B71: 2 | C71: Jh | G71: lgk;d deZpkjh | H71: ysoy | I71: 1 | J71: 0 | K71: =J71*12 -> 0 | L71: 2025-07-01 | M71: =P71*8 -> 0 | N71: =K71+M71 -> 0 | O71: =N71-P71*12 -> 0 | P71: 0 | S71: 0 | T71: 0 | V71: =Y71-X71 -> -1 | W71: =IF(R42>=DATE(2017,7,1),CEILING(Y71*3%,10)+V71,V71) -> -1 | X71: =I71 -> 1 | Y71: =J71 -> 0 | Z71: =SUM(W71:X71) -> 0 | AA71: =Z71-Y71 -> 0 | AC71: =J71 -> 0 | AD71: =AC71*3/100 -> 0 | AE71: =ROUNDUP(AD71,-1) -> 0 | AF71: =AC71+AE71 -> 0 | AI71: =AF71-J71 -> 0
A72: vjktif=r | B72: 3 | C72: Jh | G72: lgk;d deZpkjh | H72: ysoy | I72: 1 | J72: 0 | K72: 0 | L72: 2025-07-01 | M72: 0 | N72: 0 | O72: 0 | P72: 0 | S72: 0 | T72: 0 | V72: -1 | W72: =IF(R42>=DATE(2017,7,1),CEILING(Y72*3%,10)+V72,V72) -> -1 | X72: 1 | Y72: 0 | Z72: 0 | AA72: 0 | AC72: 0 | AD72: 0 | AE72: 0 | AF72: 0 | AI72: 0
B74: jktif=r ;ksx | J74: =J47+J48+J49+J50+J51+J52+J53 -> 42500 | K74: =K47+K48+K49+K50+K51+K52+K53 -> 510000 | M74: 10400 | N74: =N47+N48+N49+N50+N51+N52+N53 -> 520400 | O74: 504800
B75: vjktif=r ;ksx | J75: =SUM(J54:J72) -> 0 | K75: =SUM(K54:K72) -> 0 | M75: =M54+M55+M56+M57+M58+M59+M60+M64+M65+M67+M68+M69+M70+M72+M61+M62+M63+M71+M66 -> 0 | N75: =N54+N55+N56+N57+N58+N59+N60+N61+N62+N63+N64+N65+N66+N67+N68+N69+N70+N71+N72 -> 0 | O75: =O54+O55+O56+O57+O58+O59+O60+O61+O62+O63+O64+O65+O66+O67+O68+O69+O70+O71+O72 -> 0
B76: ;ksx jktif=r$vjktif=r | J76: =J74+J75 -> 42500 | K76: =K74+K75 -> 510000 | M76: =M74+M75 -> 10400 | N76: =N74+N75 -> 520400 | O76: =O74+O75 -> 504800
A77: =$H$13 -> 0.5 | B77: egaxkbZ HkRrk -------izfr'kr | N77: =ROUND(N76*A77,0) -> 260200 | O77: =ROUND(O76*A77,0) -> 252400 | R77: deZpkjh dh la[;k
A78: =$L$13 -> 0.09 | B78: edku fdjk;k 9@18 izfr'kr | N78: =ROUND(N76*A78,0) -> 46836 | O78: =ROUND(O76*A78,0) -> 45432
A79: =$J$13 -> 0 | B79: egaxkbZ HkRRkk ,sfj;j¼----izfr'kr½ | O79: =ROUND((O76*A79*F13)/12,0) -> 0
B80: cksul | N80: =P80*R80 -> 0 | O80: =P80*R80 -> 0 | P80: 6774 | R80: =$H$9 -> 0
B81: lefiZr vodk'k | N81: =ROUND((N76+N77)/24,0) -> 32525 | O81: =ROUND((O76+O77)/24,0) -> 31550
B82: dSf'k;j HkRrk | N82: =P82*R82*12 -> 0 | O82: =P82*R82*12 -> 0 | P82: 50 | R82: =$H$10 -> 0
B83: f};kax HkRrk | N83: =P83*R83*12 -> 0 | O83: =P83*R83*12 -> 0 | P83: 1200 | R83: =$H$11 -> 0
B84: /kqykbZ HkRrkk | N84: =P84*R84*12 -> 0 | O84: =P84*R84*12 -> 0 | P84: 200 | R84: =H7+H8 -> 0
B85: ¼fQDl is½ vU; HkRRkk | N85: =$J$104 -> 0 | O85: =$I$104 -> 0 | P85: 14660 | R85: 0
B86: dqqy HkRrk ;ksx | N86: =SUM(N77+N78+N79+N80+N81+N85+N82+N84+N83) -> 339561 | O86: =SUM(O77+O78+O79+O80+O81+O85+O84+O82+O83) -> 329382
B87: ;ksx laosru | N87: =N86+N76 -> 859961 | O87: =O86+O76 -> 834182
B88: ;k=k HkRrk | N88: =O27 -> 0 | O88: =N27 -> 0
B89: esfMdy HkRrk | N89: =O28 -> 0 | O89: =N28 -> 0
B90: ;ksx ;k=k HkRrk$esfMdy HkRRkk | N90: =N88+N89 -> 0 | O90: =O88+O89 -> 0
B91: egk;ksx | N91: =N87+N90 -> 859961 | O91: =O87+O90 -> 834182
C92: Ø-la- | D92: uke dkfeZd | E92: in uke | F92: tUe frfFk | G92: fu;qfä frfFk | H92: ekfld ekuns; | I92: 12 ekg dk ekuns; | J92: vkxkeh o"kZ es 12 ekg dk ekuns;
C93: 1 | D93: 2 | E93: 3 | F93: 4 | G93: 5 | H93: 6 | I93: 7 | J93: 8
C94: 1 | H94: 0 | I94: =H94*12 -> 0 | J94: =H94*12 -> 0
C95: 2 | H95: 0 | I95: =H95*12 -> 0 | J95: =H95*12 -> 0
C96: 3 | H96: 0 | I96: 0 | J96: 0
C97: 4 | H97: 0 | I97: 0 | J97: 0
C98: 5 | H98: 0 | I98: 0 | J98: 0
C99: 6 | H99: 0 | I99: 0 | J99: 0
C100: 7 | H100: 0 | I100: 0 | J100: 0
C101: 8 | H101: 0 | I101: 0 | J101: 0
C102: 9 | H102: 0 | I102: 0 | J102: 0
C103: 10 | H103: 0 | I103: 0 | J103: 0
E104: TOTAL | I104: =SUM(I94:I103) -> 0 | J104: =SUM(J94:J103) -> 0

Sheet rrr 08
A1: izi= 8 | L1: ctV gSM | M1: =Profile!$C$3 -> 2202-02-109-01-00
A2: fuf'pr O;;ksa ds foLr`r vuqeku vFkkZr~ vf/kdkfj;ksa o deZpkfj;ksa ds osru vuqeku o"kZ ¼vizSy ls ekpZ rd½ | P2: =Profile!$M$39 -> 2025&2026
A3: ¼ctV vuqeku vf/kdkfj;ksa }kjk foHkkxk/;{k dks izLrqr djus gsrq½ ys[kk dk 'kh"kZ % eq[; 'kh"kZ@minh?kZ 'kh"kZ@y?kq'kh"kZ@mi'kh"kZ xzqi 'kh"kZ--------------------vk;kstuk fHkUu@vk;kstuk@dsUnz izofrZr ;kstuk
A4: dk;kZy; %& | D4: =Profile!$D$39 -> lhchbZvks chdkusj | I4: foHkkx dk uke %& | K4: =Profile!$G$2 -> f'k{kk foHkkx | M4: =Profile!$K$39 -> LVsV Q.M | N4: ekax la[;k& | O4: =Profile!$C$11 -> 20 | P4: =Profile!$G$38 -> 2405
B5: ctV Lohd`fr esa fo|ky; dh Ø-la- %& | E5: =Profile!$C$12 -> 25 | F5: dk;kZy; v/;{k MhMhvks uke %& | I5: =Profile!$G$4 -> izHkkr 'kekZ | K5: =Profile!$I$4 -> 9414318727 | N5: j lgL=ksa esa
B6: Øe la[;k | C6: uke | E6: =Profile!$F$41 -> thih,Q@,uih,l@izku uEcj | F6: in | G6: in dk Lohd`r osru | I6: =Profile!$J$41 -> ctV dh izkjfEHkd frfFk ;kfu 1ekpZ2025 dks deZpkjh dk osru | J6: igyh ekpZ ls vfUre Qjojh ds fy;s fu/kkZfjr jde | K6: o`f) tks bl vof/k esa gksxh | M6: =Profile!$N$41 -> vkxkeh o"kZ 2025&26 ds fy;s jde ¼dkye 8$10½ | N6: =Profile!$O$41 -> pkyw o"kZ ds fy;s la'kksf/kr vuqeku 2024&25 | O6: fo'ks"k fooj.k ¼osru o`f)½ | P6: deZpkjh vkbZ Mh
G7: =Profile!$H$42 -> xzsM is@ ysoy | K7: frfFk o`f) | L7: jde o`f)
B8: 1 | C8: 2 | E8: 3 | F8: 4 | G8: 5 | H8: 6 | I8: 7 | J8: 8 | K8: 9 | L8: 10 | M8: 11 | N8: 12 | O8: 13 | P8: 14
A9: =Profile!A47 -> jktif=r | B9: =Profile!B47 -> 1 | C9: =Profile!C47 -> Jh | D9: =Profile!D47 -> izHkkr 'kekZ | E9: =Profile!F47 -> 543895 | F9: =Profile!G47 -> iz/kkukpk;Z | G9: =Profile!H47 -> ysoy | H9: =Profile!I47 -> 16 | I9: =Profile!J47 -> 42500 | J9: =I9*12 -> 510000 | K9: =Profile!L47 -> 2025-07-01 | L9: =O9*8 -> 10400 | M9: =J9+L9 -> 520400 | N9: =M9-O9*12 -> 504800 | O9: =Profile!P47 -> 1300 | P9: =Profile!E47 -> RJGA198635002357
A10: =Profile!A48 -> jktif=r | B10: =Profile!B48 -> 1 | C10: =Profile!C48 -> Jh | D10: =Profile!D48 -> 0 | E10: =Profile!F48 -> 0 | F10: =Profile!G48 -> O;k[;krk | G10: =Profile!H48 -> ysoy | H10: =Profile!I48 -> 12 | I10: =Profile!J48 -> 0 | J10: =I10*12 -> 0 | K10: =Profile!L48 -> 2025-07-01 | L10: =O10*8 -> 0 | M10: =J10+L10 -> 0 | N10: =M10-O10*12 -> 0 | O10: =Profile!P48 -> 0 | P10: =Profile!E48 -> 0
A11: =Profile!A49 -> jktif=r | B11: =Profile!B49 -> 2 | C11: =Profile!C49 -> Jherh | D11: =Profile!D49 -> 0 | E11: =Profile!F49 -> 0 | F11: =Profile!G49 -> O;k[;krk | G11: =Profile!H49 -> ysoy | H11: =Profile!I49 -> 12 | I11: =Profile!J49 -> 0 | J11: 0 | K11: =Profile!L49 -> 2025-07-01 | L11: 0 | M11: 0 | N11: =M11-O11*12 -> 0 | O11: =Profile!P49 -> 0 | P11: =Profile!E49 -> 0
A12: =Profile!A50 -> jktif=r | B12: =Profile!B50 -> 3 | C12: =Profile!C50 -> Jh | D12: =Profile!D50 -> 0 | E12: =Profile!F50 -> 0 | F12: =Profile!G50 -> O;k[;krk | G12: =Profile!H50 -> ysoy | H12: =Profile!I50 -> 12 | I12: =Profile!J50 -> 0 | J12: 0 | K12: =Profile!L50 -> 2025-07-01 | L12: 0 | M12: 0 | N12: 0 | O12: =Profile!P50 -> 0 | P12: =Profile!E50 -> 0
A13: =Profile!A51 -> jktif=r | B13: =Profile!B51 -> 4 | C13: =Profile!C51 -> Jh | D13: =Profile!D51 -> 0 | E13: =Profile!F51 -> 0 | F13: =Profile!G51 -> O;k[;krk | G13: =Profile!H51 -> ysoy | H13: =Profile!I51 -> 12 | I13: =Profile!J51 -> 0 | J13: 0 | K13: =Profile!L51 -> 2025-07-01 | L13: 0 | M13: 0 | N13: 0 | O13: =Profile!P51 -> 0 | P13: =Profile!E51 -> 0
A14: =Profile!A52 -> jktif=r | B14: =Profile!B52 -> 5 | C14: =Profile!C52 -> Jh | D14: =Profile!D52 -> 0 | E14: =Profile!F52 -> 0 | F14: =Profile!G52 -> O;k[;krk | G14: =Profile!H52 -> ysoy | H14: =Profile!I52 -> 12 | I14: =Profile!J52 -> 0 | J14: 0 | K14: =Profile!L52 -> 2025-07-01 | L14: 0 | M14: 0 | N14: 0 | O14: =Profile!P52 -> 0 | P14: =Profile!E52 -> 0
A15: =Profile!A53 -> jktif=r | B15: =Profile!B53 -> 6 | C15: =Profile!C53 -> Jh | D15: =Profile!D53 -> 0 | E15: =Profile!F53 -> 0 | F15: =Profile!G53 -> O;k[;krk | G15: =Profile!H53 -> ysoy | H15: =Profile!I53 -> 12 | I15: =Profile!J53 -> 0 | J15: 0 | K15: =Profile!L53 -> 2025-07-01 | L15: 0 | M15: 0 | N15: 0 | O15: =Profile!P53 -> 0 | P15: =Profile!E53 -> 0
A16: =Profile!A54 -> vjktif=r | B16: =Profile!B54 -> 1 | C16: =Profile!C54 -> Jh | D16: =Profile!D54 -> 0 | E16: =Profile!F54 -> 0 | F16: =Profile!G54 -> ofj"B v/;kid | G16: =Profile!H54 -> ysoy | H16: =Profile!I54 -> 11 | I16: =Profile!J54 -> 0 | J16: 0 | K16: =Profile!L54 -> 2025-07-01 | L16: 0 | M16: 0 | N16: 0 | O16: =Profile!P54 -> 0 | P16: =Profile!E54 -> 0
A17: =Profile!A55 -> vjktif=r | B17: =Profile!B55 -> 2 | C17: =Profile!C55 -> Jh | D17: =Profile!D55 -> 0 | E17: =Profile!F55 -> 0 | F17: =Profile!G55 -> ofj"B v/;kid | G17: =Profile!H55 -> ysoy | H17: =Profile!I55 -> 11 | I17: =Profile!J55 -> 0 | J17: =I17*12 -> 0 | K17: =Profile!L55 -> 2025-07-01 | L17: 0 | M17: 0 | N17: 0 | O17: =Profile!P55 -> 0 | P17: =Profile!E55 -> 0
A18: =Profile!A56 -> vjktif=r | B18: =Profile!B56 -> 3 | C18: =Profile!C56 -> Jh | D18: =Profile!D56 -> 0 | E18: =Profile!F56 -> 0 | F18: =Profile!G56 -> ofj"B v/;kid | G18: =Profile!H56 -> ysoy | H18: =Profile!I56 -> 11 | I18: =Profile!J56 -> 0 | J18: 0 | K18: =Profile!L56 -> 2025-07-01 | L18: 0 | M18: 0 | N18: 0 | O18: =Profile!P56 -> 0 | P18: =Profile!E56 -> 0
A19: =Profile!A57 -> vjktif=r | B19: =Profile!B57 -> 4 | C19: =Profile!C57 -> Jh | D19: =Profile!D57 -> 0 | E19: =Profile!F57 -> 0 | F19: =Profile!G57 -> ofj"B v/;kid | G19: =Profile!H57 -> ysoy | H19: =Profile!I57 -> 11 | I19: =Profile!J57 -> 0 | J19: 0 | K19: =Profile!L57 -> 2025-07-01 | L19: 0 | M19: 0 | N19: 0 | O19: =Profile!P57 -> 0 | P19: =Profile!E57 -> 0
A20: =Profile!A58 -> vjktif=r | B20: =Profile!B58 -> 5 | C20: =Profile!C58 -> Jh | D20: =Profile!D58 -> 0 | E20: =Profile!F58 -> 0 | F20: =Profile!G58 -> ofj"B v/;kid | G20: =Profile!H58 -> ysoy | H20: =Profile!I58 -> 11 | I20: =Profile!J58 -> 0 | J20: 0 | K20: =Profile!L58 -> 2025-07-01 | L20: 0 | M20: 0 | N20: 0 | O20: =Profile!P58 -> 0 | P20: =Profile!E58 -> 0
A21: =Profile!A59 -> vjktif=r | B21: =Profile!B59 -> 6 | C21: =Profile!C59 -> Jh | D21: =Profile!D59 -> 0 | E21: =Profile!F59 -> 0 | F21: =Profile!G59 -> ofj"B v/;kid | G21: =Profile!H59 -> ysoy | H21: =Profile!I59 -> 11 | I21: =Profile!J59 -> 0 | J21: =I21*12 -> 0 | K21: =Profile!L59 -> 2025-07-01 | L21: =O21*8 -> 0 | M21: =J21+L21 -> 0 | N21: =M21-O21*12 -> 0 | O21: =Profile!P59 -> 0 | P21: =Profile!E59 -> 0
A22: =Profile!A60 -> vjktif=r | B22: =Profile!B60 -> a1 | C22: =Profile!C60 -> Jh | D22: =Profile!D60 -> 0 | E22: =Profile!F60 -> 0 | F22: =Profile!G60 -> v/;kid | G22: =Profile!H60 -> ysoy | H22: =Profile!I60 -> 10 | I22: =Profile!J60 -> 0 | J22: 0 | K22: =Profile!L60 -> 2025-07-01 | L22: 0 | M22: 0 | N22: 0 | O22: =Profile!P60 -> 0 | P22: =Profile!E60 -> 0
A23: =Profile!A61 -> vjktif=r | B23: =Profile!B61 -> 2 | C23: =Profile!C61 -> Jh | D23: =Profile!D61 -> 0 | E23: =Profile!F61 -> 0 | F23: =Profile!G61 -> v/;kid | G23: =Profile!H61 -> ysoy | H23: =Profile!I61 -> 10 | I23: =Profile!J61 -> 0 | J23: 0 | K23: =Profile!L61 -> 2025-07-01 | L23: 0 | M23: 0 | N23: 0 | O23: =Profile!P61 -> 0 | P23: =Profile!E61 -> 0
A24: =Profile!A62 -> vjktif=r | B24: =Profile!B62 -> 3 | C24: =Profile!C62 -> Jh | D24: =Profile!D62 -> 0 | E24: =Profile!F62 -> 0 | F24: =Profile!G62 -> v/;kid | G24: =Profile!H62 -> ysoy | H24: =Profile!I62 -> 10 | I24: =Profile!J62 -> 0 | J24: 0 | K24: =Profile!L62 -> 2025-07-01 | L24: 0 | M24: 0 | N24: =M24-O24*12 -> 0 | O24: =Profile!P62 -> 0 | P24: =Profile!E62 -> 0
A25: =Profile!A63 -> vjktif=r | B25: =Profile!B63 -> 1 | C25: =Profile!C63 -> Jh | D25: =Profile!D63 -> 0 | E25: =Profile!F63 -> 0 | F25: =Profile!G63 -> 'kk0f'k{kd | G25: =Profile!H63 -> ysoy | H25: =Profile!I63 -> 10 | I25: =Profile!J63 -> 0 | J25: 0 | K25: =Profile!L63 -> 2025-07-01 | L25: 0 | M25: 0 | N25: 0 | O25: =Profile!P63 -> 0 | P25: =Profile!E63 -> 0
A26: =Profile!A64 -> vjktif=r | B26: =Profile!B64 -> 1 | C26: =Profile!C64 -> Jh | D26: =Profile!D64 -> 0 | E26: =Profile!F64 -> 0 | F26: =Profile!G64 -> dEi;wVj vuqns'kd | G26: =Profile!H64 -> ysoy | H26: =Profile!I64 -> 8 | I26: =Profile!J64 -> 0 | J26: 0 | K26: =Profile!L64 -> 2025-07-01 | L26: 0 | M26: 0 | N26: 0 | O26: =Profile!P64 -> 0 | P26: =Profile!E64 -> 0
A27: =Profile!A65 -> vjktif=r | B27: =Profile!B65 -> 1 | C27: =Profile!C65 -> Jh | D27: =Profile!D65 -> 0 | E27: =Profile!F65 -> 0 | F27: =Profile!G65 -> iz'kklfud vf/kdkjh | G27: =Profile!H65 -> ysoy | H27: =Profile!I65 -> 15 | I27: =Profile!J65 -> 0 | J27: 0 | K27: =Profile!L65 -> 2025-07-01 | L27: 0 | M27: 0 | N27: 0 | O27: =Profile!P65 -> 0 | P27: =Profile!E65 -> 0
A28: =Profile!A66 -> vjktif=r | B28: =Profile!B66 -> 1 | C28: =Profile!C66 -> Jh | D28: =Profile!D66 -> 0 | E28: =Profile!F66 -> 0 | F28: =Profile!G66 -> vfrfjDr iz0v0 | G28: =Profile!H66 -> ysoy | H28: =Profile!I66 -> 11 | I28: =Profile!J66 -> 0 | J28: 0 | K28: =Profile!L66 -> 2025-07-01 | L28: 0 | M28: 0 | N28: 0 | O28: =Profile!P66 -> 0 | P28: =Profile!E66 -> 0
A29: =Profile!A67 -> vjktif=r | B29: =Profile!B67 -> 1 | C29: =Profile!C67 -> Jh | D29: =Profile!D67 -> 0 | E29: =Profile!F67 -> 0 | F29: =Profile!G67 -> lgk;d iz0v0 | G29: =Profile!H67 -> ysoy | H29: =Profile!I67 -> 10 | I29: =Profile!J67 -> 0 | J29: 0 | K29: =Profile!L67 -> 2025-07-01 | L29: 0 | M29: 0 | N29: 0 | O29: =Profile!P67 -> 0 | P29: =Profile!E67 -> 0
A30: =Profile!A68 -> vjktif=r | B30: =Profile!B68 -> 1 | C30: =Profile!C68 -> Jh | D30: =Profile!D68 -> 0 | E30: =Profile!F68 -> 0 | F30: =Profile!G68 -> ofj"B lgk;d | G30: =Profile!H68 -> ysoy | H30: =Profile!I68 -> 8 | I30: =Profile!J68 -> 0 | J30: 0 | K30: =Profile!L68 -> 2025-07-01 | L30: 0 | M30: 0 | N30: 0 | O30: =Profile!P68 -> 0 | P30: =Profile!E68 -> 0
A31: =Profile!A69 -> vjktif=r | B31: =Profile!B69 -> 1 | C31: =Profile!C69 -> Jh | D31: =Profile!D69 -> 0 | E31: =Profile!F69 -> 0 | F31: =Profile!G69 -> dfu"B lgk;d | G31: =Profile!H69 -> ysoy | H31: =Profile!I69 -> 5 | I31: =Profile!J69 -> 0 | J31: 0 | K31: =Profile!L69 -> 2025-07-01 | L31: 0 | M31: 0 | N31: 0 | O31: =Profile!P69 -> 0 | P31: =Profile!E69 -> 0
A32: =Profile!A70 -> vjktif=r | B32: =Profile!B70 -> 1 | C32: =Profile!C70 -> Jh | D32: =Profile!D70 -> 0 | E32: =Profile!F70 -> 0 | F32: =Profile!G70 -> lgk;d deZpkjh | G32: =Profile!H70 -> ysoy | H32: =Profile!I70 -> 1 | I32: =Profile!J70 -> 0 | J32: 0 | K32: =Profile!L70 -> 2025-07-01 | L32: 0 | M32: 0 | N32: 0 | O32: =Profile!P70 -> 0 | P32: =Profile!E70 -> 0
A33: =Profile!A71 -> vjktif=r | B33: =Profile!B71 -> 2 | C33: =Profile!C71 -> Jh | D33: =Profile!D71 -> 0 | E33: =Profile!F71 -> 0 | F33: =Profile!G71 -> lgk;d deZpkjh | G33: =Profile!H71 -> ysoy | H33: =Profile!I71 -> 1 | I33: =Profile!J71 -> 0 | J33: 0 | K33: =Profile!L71 -> 2025-07-01 | L33: 0 | M33: 0 | N33: 0 | O33: =Profile!P71 -> 0 | P33: =Profile!E71 -> 0
A34: =Profile!A72 -> vjktif=r | B34: =Profile!B72 -> 3 | C34: =Profile!C72 -> Jh | D34: =Profile!D72 -> 0 | E34: =Profile!F72 -> 0 | F34: =Profile!G72 -> lgk;d deZpkjh | G34: =Profile!H72 -> ysoy | H34: =Profile!I72 -> 1 | I34: =Profile!J72 -> 0 | J34: 0 | K34: =Profile!L72 -> 2025-07-01 | L34: 0 | M34: 0 | N34: 0 | O34: =Profile!P72 -> 0 | P34: =Profile!E72 -> 0
B36: jktif=r ;ksx | I36: =Profile!J74 -> 42500 | J36: =Profile!K74 -> 510000 | L36: =Profile!M74 -> 10400 | M36: =Profile!N74 -> 520400 | N36: =Profile!O74 -> 504800
B37: vjktif=r ;ksx | I37: =Profile!J75 -> 0 | J37: =Profile!K75 -> 0 | L37: =Profile!M75 -> 0 | M37: =Profile!N75 -> 0 | N37: =Profile!O75 -> 0
B38: ;ksx jktif=r$vjktif=r | I38: =Profile!J76 -> 42500 | J38: =Profile!K76 -> 510000 | L38: =Profile!M76 -> 10400 | M38: =Profile!N76 -> 520400 | N38: =Profile!O76 -> 504800
A39: =Profile!A77 -> 0.5 | B39: =Profile!$B$77 -> egaxkbZ HkRrk -------izfr'kr | M39: =Profile!N77 -> 260200 | N39: =Profile!O77 -> 252400
A40: =Profile!A78 -> 0.09 | B40: =Profile!$B$78 -> edku fdjk;k 9@18 izfr'kr | M40: =Profile!N78 -> 46836 | N40: =Profile!O78 -> 45432
A41: =Profile!A79 -> 0 | B41: =Profile!$B$79 -> egaxkbZ HkRRkk ,sfj;j¼----izfr'kr½ | M41: =Profile!N79 -> 0 | N41: =Profile!O79 -> 0 | Q41: deZpkjh dh la[;k
B42: =Profile!$B$80 -> cksul | M42: =Profile!N80 -> 0 | N42: =Profile!O80 -> 0 | Q42: =Profile!$R$80 -> 0
B43: =Profile!B81 -> lefiZr vodk'k | M43: =Profile!N81 -> 32525 | N43: =Profile!O81 -> 31550
B44: =Profile!B82 -> dSf'k;j HkRrk | M44: =Profile!N82 -> 0 | N44: =Profile!O82 -> 0
B45: =Profile!B83 -> f};kax HkRrk | M45: =Profile!N83 -> 0 | N45: =Profile!O83 -> 0
B46: =Profile!B84 -> /kqykbZ HkRrkk | M46: =Profile!N84 -> 0 | N46: =Profile!O84 -> 0
B47: =Profile!B85 -> ¼fQDl is½ vU; HkRRkk | M47: =Profile!N85 -> 0 | N47: =Profile!O85 -> 0
B48: =Profile!$B$86 -> dqqy HkRrk ;ksx | M48: =Profile!N86 -> 339561 | N48: =Profile!O86 -> 329382
B49: =Profile!B87 -> ;ksx laosru | M49: =Profile!N87 -> 859961 | N49: =Profile!O87 -> 834182
B50: =Profile!B88 -> ;k=k HkRrk | M50: =Profile!N88 -> 0 | N50: =Profile!O88 -> 0
B51: =Profile!B89 -> esfMdy HkRrk | M51: =Profile!N89 -> 0 | N51: =Profile!O89 -> 0
B52: =Profile!B90 -> ;ksx ;k=k HkRrk$esfMdy HkRRkk | M52: =Profile!N90 -> 0 | N52: =Profile!O90 -> 0
B53: =Profile!B91 -> egk;ksx | M53: =Profile!N91 -> 859961 | N53: =Profile!O91 -> 834182
D55: izekf.kr fd;k tkrk gS fd mi;qZDr lwpuk dh esjs }kjk O;fDrxr :Ik ls tkap dj yh xbZ gS vksj bls lgh ik;k x;k gSA
M57: =Profile!A3 -> lhchbZvks
I58: rS;kj drkZ %& | J58: =Profile!G6 -> dqynhi dqekj | M58: =Profile!A4 -> lexz f'k{kk
J59: =Profile!$I$6 -> 9799001169 | M59: =Profile!A5 -> chdkusj
M60: =Profile!$F$4 -> 2405

Sheet rrr 09
A1: izi= 9 | M1: ctV gSM | N1: =Profile!$C$3 -> 2202-02-109-01-00 | S1: ='rrr 08'!$P$2 -> 2025&2026
A2: fuf'pr O;;ksa ds foLr`r vuqeku vFkkZr~ vf/kdkfj;ksa o deZpkfj;ksa ds osru vuqeku o"kZ ¼vizSy ls ekpZ rd½ | S2: =Profile!$K$39 -> LVsV Q.M
A3: ¼ctV vuqeku vf/kdkfj;ksa }kjk foHkkxk/;{k dks izLrqr djus gsrq½ ys[kk dk 'kh"kZ % eq[; 'kh"kZ@minh?kZ 'kh"kZ@y?kq'kh"kZ@mi'kh"kZ xzqi 'kh"kZ--------------------vk;kstuk fHkUu@vk;kstuk@dsUnz izofrZr ;kstuk
A4: dk;kZy; & | E4: =Profile!$D$39 -> lhchbZvks chdkusj | L4: foHkkx dk uke %& | O4: =Profile!$G$2 -> f'k{kk foHkkx | S4: =Profile!$G$38 -> 2405
B5: ctV Lohd`fr esa fo|ky; dh Ø-la- %& | F5: =Profile!$C$12 -> 25 | H5: dk;kZy; v/;{k MhMhvks uke %& | K5: =Profile!$G$4 -> izHkkr 'kekZ | N5: =Profile!$I$4 -> 9414318727 | S5: j lgL=ksa esa
A6: Øe l[;k | B6: ys[kk 'kh"kZd ¼foLr`r 'kh"kZ½ | C6: nrer@ ize`r | D6: okLrfod O;; vkadM+s¼xr iwoZ rhu o"kksZ ds½ | G6: =Profile!$E$24 -> 2024&2025 | H6: okLrfod O;; vkadM+s | K6: vxLr ls ekpZ rd dk laHkkfor O;; ¼pkyw o"kZ½ | L6: la'kksf/kr vuqeku ¼pkyw o"kZ½ 9$11 | M6: vk; O;; ds vuqeku ckcr ¼vkxkeh o"kZ½ | P6: o`f)¼$½ ;k deh¼&½ | S6: uohu vkbVe | T6: fo'ks"k fooj.k
D7: =Profile!$F$25 -> 2021-22 | E7: =Profile!$G$25 -> 2022-23 | F7: =Profile!$H$25 -> 23&24 esa ekpZ2024 dk th-,-19 | G7: vk; O;; ds vuqeku ckcr~ pkyw o"kZ | H7: vxLr ls ekpZ rd ¼xr o"kZ½ | I7: viszy ls tqykbZ rd ¼pkyw o"kZ½ | J7: dkye 8 o 9 dk ;ksx | M7: dfeVsM | N7: uohu | O7: dqy ¼13+14½ | P7: 7 vkSj 12 esa | Q7: 10 vkSj 12 esa | R7: 12 vkSj 15 esa | S7: gka @ ugha
A8: 1 | B8: 2 | C8: 3 | D8: 4 | E8: 5 | F8: 6 | G8: 7 | H8: 8 | I8: 9 | J8: 10 | K8: 11 | L8: 12 | M8: 13 | N8: 14 | O8: 15 | P8: 16 | Q8: 17 | R8: 18 | S8: 19 | T8: 20
B9: ;ksx jk$vjk | L9: ='rrr 08'!$N$38 -> 504800 | M9: ='rrr 08'!$M$38 -> 520400 | O9: =M9+N9 -> 520400
A10: =Profile!A77 -> 0.5 | B10: =Profile!$B$77 -> egaxkbZ HkRrk -------izfr'kr | L10: ='rrr 08'!N39 -> 252400 | M10: ='rrr 08'!M39 -> 260200 | O10: =M10+N10 -> 260200
A11: =Profile!A78 -> 0.09 | B11: edku fdjk;k | L11: ='rrr 08'!N40 -> 45432 | M11: ='rrr 08'!M40 -> 46836 | O11: 46836
A12: =Profile!A79 -> 0 | B12: =Profile!$B$79 -> egaxkbZ HkRRkk ,sfj;j¼----izfr'kr½ | L12: ='rrr 08'!N41 -> 0 | M12: ='rrr 08'!M41 -> 0 | O12: 0
B13: cksul | L13: ='rrr 08'!N42 -> 0 | M13: ='rrr 08'!M42 -> 0 | O13: 0
B14: lefiZr vodk'k | L14: ='rrr 08'!N43 -> 31550 | M14: ='rrr 08'!M43 -> 32525 | O14: 32525
B15: dSf'k;j HkRrk | L15: ='rrr 08'!N44 -> 0 | M15: ='rrr 08'!M44 -> 0 | O15: 0
B16: o`f) HkRrk | L16: ='rrr 08'!N46 -> 0 | M16: ='rrr 08'!M46 -> 0 | O16: 0
B17: vU; Hkrs | L17: ='rrr 08'!$N$47 -> 0 | M17: ='rrr 08'!$M$47 -> 0 | O17: 0
B18: ;ksx HkRrs | L18: ='rrr 08'!N48 -> 329382 | M18: ='rrr 08'!M48 -> 339561 | O18: 339561
B19: ;ksx laosru | D19: =Profile!F26 -> 0 | E19: =Profile!G26 -> 0 | F19: =Profile!H26 -> 0 | G19: =Profile!$C$26 -> 0 | H19: =Profile!P26 -> 0 | I19: =Profile!Q26 -> 155000 | J19: =H19+I19 -> 155000 | K19: =L19-I19 -> 679182 | L19: ='rrr 08'!N49 -> 834182 | M19: ='rrr 08'!M49 -> 859961 | O19: 859961
B20: ;k=k HkRrk | D20: =Profile!F27 -> 0 | E20: =Profile!G27 -> 0 | F20: =Profile!H27 -> 0 | G20: =Profile!C27 -> 0 | H20: =Profile!P27 -> 0 | I20: =Profile!Q27 -> 0 | J20: =H20+I20 -> 0 | K20: =L20-I20 -> 0 | L20: ='rrr 08'!N50 -> 0 | M20: ='rrr 08'!M50 -> 0 | O20: 0
B21: esfMdy HkRrk | D21: =Profile!F28 -> 0 | E21: =Profile!G28 -> 0 | F21: =Profile!H28 -> 0 | G21: =Profile!C28 -> 0 | H21: =Profile!P28 -> 0 | I21: =Profile!Q28 -> 0 | J21: 0 | K21: =L21-I21 -> 0 | L21: ='rrr 08'!N51 -> 0 | M21: ='rrr 08'!M51 -> 0 | O21: 0
B22: ;ksx ;k=k esfMdy | D22: =D20+D21 -> 0 | E22: =E20+E21 -> 0 | F22: 0 | G22: =G20+G21 -> 0 | H22: =H20+H21 -> 0 | I22: 0 | J22: 0 | K22: 0 | L22: ='rrr 08'!N52 -> 0 | M22: ='rrr 08'!M52 -> 0 | O22: 0
B23: ;ksx loZ;ksx | D23: =D22+D19 -> 0 | E23: 0 | F23: 0 | G23: =G22+G19 -> 0 | H23: =H22+H19 -> 0 | I23: =I22+I19 -> 155000 | J23: =J22+J19 -> 155000 | K23: =K22+K19 -> 679182 | L23: =L19+L22 -> 834182 | M23: =M19+M22 -> 859961 | O23: 859961
B24: =Profile!A29 -> dk;kZy; O;; | D24: =Profile!F29 -> 0 | E24: =Profile!G29 -> 0 | F24: =Profile!H29 -> 0 | G24: =Profile!C29 -> 0 | H24: =Profile!P29 -> 0 | I24: =Profile!Q29 -> 0 | J24: =H24+I24 -> 0 | K24: =L24-I24 -> 0 | L24: =Profile!AK29 -> 0 | M24: =Profile!AL27 -> 0 | O24: 0
B25: =Profile!A30 -> fdjk;k dj jk;fYV | D25: =Profile!F30 -> 0 | E25: =Profile!G30 -> 0 | F25: =Profile!H30 -> 0 | G25: =Profile!C30 -> 0 | H25: =Profile!P30 -> 0 | I25: =Profile!Q30 -> 0 | J25: =H25+I25 -> 0 | K25: =L25-I25 -> 0 | L25: =Profile!AK30 -> 0 | M25: =Profile!AL28 -> 0 | O25: 0
B26: =Profile!A31 -> e'khujh lkt lkeku | D26: =Profile!F31 -> 0 | E26: =Profile!G31 -> 0 | F26: =Profile!H31 -> 0 | G26: =Profile!C31 -> 0 | H26: =Profile!P31 -> 0 | I26: =Profile!Q31 -> 0 | J26: 0 | K26: 0 | L26: =Profile!AK31 -> 0 | M26: =Profile!AL29 -> 0 | O26: 0
B27: =Profile!A32 -> iqLrdky; | D27: =Profile!F32 -> 0 | E27: =Profile!G32 -> 0 | F27: =Profile!H32 -> 0 | G27: =Profile!C32 -> 0 | H27: =Profile!P32 -> 0 | I27: =Profile!Q32 -> 0 | J27: 0 | K27: =L27-I27 -> 0 | L27: =Profile!AK32 -> 0 | M27: =Profile!AL30 -> 0 | O27: 0
B28: =Profile!A33 -> iz;ksx'kkyk | D28: =Profile!F33 -> 0 | E28: =Profile!G33 -> 0 | F28: =Profile!H33 -> 0 | G28: =Profile!C33 -> 0 | H28: =Profile!P33 -> 0 | I28: =Profile!Q33 -> 0 | J28: 0 | K28: 0 | L28: =Profile!AK33 -> 0 | M28: =Profile!AL31 -> 0 | O28: 0
B29: =Profile!A34 -> ofnZ;ka | D29: =Profile!F34 -> 0 | E29: =Profile!G34 -> 0 | F29: =Profile!H34 -> 0 | G29: =Profile!C34 -> 0 | H29: =Profile!P34 -> 0 | I29: =Profile!Q34 -> 0 | J29: 0 | K29: 0 | L29: =Profile!N34 -> 0 | M29: =Profile!AL34 -> 0 | O29: 0
B30: =Profile!A35 -> vU; izHkkj | D30: =Profile!F35 -> 0 | E30: =Profile!G35 -> 0 | F30: =Profile!H35 -> 0 | G30: =Profile!C35 -> 0 | H30: =Profile!P35 -> 0 | I30: =Profile!Q35 -> 0 | J30: 0 | K30: 0 | L30: =Profile!AK35 -> 0 | M30: =Profile!AL35 -> 0 | O30: 0
B31: =Profile!A36 -> foHkkxh;lsokvksa ij fof'k"V O;; | D31: =Profile!F36 -> 0 | E31: =Profile!G36 -> 0 | F31: =Profile!H36 -> 0 | G31: =Profile!C36 -> 0 | H31: =Profile!P36 -> 0 | I31: =Profile!Q36 -> 0 | J31: 0 | K31: 0 | L31: =Profile!AK36 -> 0 | M31: =Profile!AL36 -> 0 | O31: 0
B32: ;ksx | D32: =D31+D28+D27+D26+D25+D24+D29+D30 -> 0 | E32: =E31+E28+E27+E26+E25+E24+E29+E30 -> 0 | F32: 0 | G32: 0 | H32: 0 | I32: 0 | J32: =J31+J28+J27+J26+J25+J24+J29+J30 -> 0 | K32: =K31+K28+K27+K26+K25+K24+K29+K30 -> 0 | L32: =L31+L28+L27+L26+L25+L24+L29+L30 -> 0 | M32: =M31+M28+M27+M26+M25+M24+M29+M30 -> 0 | O32: =M32+N32 -> 0
B33: ;ksx egk;ksx | D33: =D32+D23 -> 0 | E33: 0 | F33: 0 | G33: 0 | H33: 0 | I33: 155000 | J33: 155000 | K33: 679182 | L33: 834182 | M33: 859961 | O33: 859961
H34: rS;kj drkZ %& | I34: =Profile!G6 -> dqynhi dqekj
I35: =Profile!$I$6 -> 9799001169 | O35: =Profile!A3 -> lhchbZvks
O36: =Profile!A4 -> lexz f'k{kk | P36: =Profile!B4 -> 0
O37: =Profile!A5 -> chdkusj | P37: =Profile!B5 -> 0
O38: =Profile!$F$4 -> 2405
B41: Øekad | C41: in uke | F41: u;k@ØekssUu;u | H41: is cSaM | K41: xzsM is | M41: dqy in | O41: fooj.k
B42: 1 | C42: 2 | F42: 3 | H42: 4 | K42: 5 | M42: 6 | O42: 7
B43: 1
B44: 2
B45: 3
B46: 4
B47: 5
B48: 6
B49: 7
B52: vU; uohu vkbVe ds fy, izi=
B53: Øekad | C53: uohu vkbVe izdkj | E53: Ø; @ fdjk;k | G53: vkbVe dk uke | I53: la[;k | K53: vkorhZ O;; ekfld | M53: vukorhZ Hkkj | O53: dqy okf"kZd Hkkj | R53: vU; fooj.k
B54: 1
B55: 2
B56: 3
B57: 4
B58: 5
B59: 6
B61: izekf.kr fd;k tkrk gS fd mi;qZDr lwpuk dh esjs }kjk O;fDrxr :Ik ls tkap dj yh xbZ gS vksj bls lgh ik;k x;k gSA

Sheet rrr10
A1: izi= 10 | J1: ctV gSM | K1: =Profile!$C$3 -> 2202-02-109-01-00
A2: vk; dk foLr`r ctV vuqeku forh; o"kZ ---------------------¼1vizSy ls 31ekpZ rd½ dk | K2: MhMhvks dksM | L2: =Profile!$G$38 -> 2405 | M2: =Profile!$K$39 -> LVsV Q.M
A3: dk;kZy; & | C3: =Profile!$D$39 -> lhchbZvks chdkusj
A4: dk;kZy; v/;{k MhMhvks uke %& | D4: =Profile!$G$4 -> izHkkr 'kekZ | H4: =Profile!$I$4 -> 9414318727 | J4: foHkkx dk uke %& | L4: =Profile!$G$2 -> f'k{kk foHkkx | N4: j lgL=ksa esa
A5: Øe l[;k | B5: ys[kk dk 'kh"kZ nh?kZ 'kh"kZ@ minh?kZ 'kh"kZ@ y?kq'kh"kZ@ mi'kh"kZ | C5: okLrfod O;; vkadM+s ¼xr iwoZ rhu o"kksZ ds½ | F5: ='rrr 09'!$G$6 -> 2024&2025 | G5: okLrfod vk; vkadM+s | J5: vxLr ls ekpZ rd dk laHkkfor vk; ¼pkyw o"kZ½ | K5: la'kksf/kr vuqeku ¼pkyw o"kZ½ 8$10 | L5: vk; O;; ds vuqeku ckcr ¼vkxkeh o"kZ½ | M5: o`f)¼$½ ;k deh¼&½
C6: ='rrr 09'!D7 -> 2021-22 | D6: ='rrr 09'!E7 -> 2022-23 | E6: ='rrr 09'!$F$7 -> 23&24 esa ekpZ2024 dk th-,-19 | F6: ='rrr 09'!$G$7 -> vk; O;; ds vuqeku ckcr~ pkyw o"kZ | G6: vxLr ls ekpZ rd ¼xr o"kZ½ | H6: viszy ls tqykbZ rd ¼pkyw o"kZ½ | I6: dkye 7 o 8 dk ;ksx | M6: 6 vkSj 11 esa | N6: 9 vkSj 11 esa | O6: 11 vkSj 12 esa
A7: 1 | B7: 2 | C7: 3 | D7: 4 | E7: 5 | F7: 6 | G7: 7 | H7: 8 | I7: 9 | J7: 10 | K7: 11 | L7: 12 | M7: 13 | N7: 14 | O7: 15
B8: f'k{k.k 'kqYd | C8: =Profile!F17 -> 0 | D8: =Profile!G17 -> 0 | E8: =Profile!H17 -> 0 | F8: =K8 -> 0 | G8: =Profile!I17 -> 0 | H8: =Profile!J17 -> 0 | I8: =G8+H8 -> 0 | J8: =Profile!K17 -> 0 | K8: =H8+J8 -> 0 | L8: =Profile!L17 -> 0
B9: Vh-lh- | C9: =Profile!F18 -> 0 | D9: =Profile!G18 -> 0 | E9: =Profile!H18 -> 0 | F9: =K9 -> 0 | G9: =Profile!I18 -> 0 | H9: =Profile!J18 -> 0 | I9: =G9+H9 -> 0 | J9: =Profile!K18 -> 0 | K9: =H9+J9 -> 0 | L9: =Profile!L18 -> 0
B10: izos'k 'kqYd | C10: =Profile!F19 -> 0 | D10: =Profile!G19 -> 0 | E10: =Profile!H19 -> 0 | F10: 0 | G10: =Profile!I19 -> 0 | H10: =Profile!J19 -> 0 | I10: 0 | J10: =Profile!K19 -> 0 | K10: 0 | L10: =Profile!L19 -> 0
B11: vuqi;ksxh lkeku ds fuLrkj.k ls vk; | C11: =Profile!F20 -> 0 | D11: =Profile!G20 -> 0 | E11: =Profile!H20 -> 0 | F11: 0 | G11: =Profile!I20 -> 0 | H11: =Profile!J20 -> 0 | I11: 0 | J11: =Profile!K20 -> 0 | K11: 0 | L11: =Profile!L20 -> 0
B12: fofo/k | C12: =Profile!F21 -> 0 | D12: =Profile!G21 -> 0 | E12: =Profile!H21 -> 0 | F12: 0 | G12: =Profile!I21 -> 0 | H12: =Profile!J21 -> 0 | I12: 0 | J12: =Profile!K21 -> 0 | K12: 0 | L12: =Profile!L21 -> 0
B13: vU; | C13: =Profile!F22 -> 0 | D13: =Profile!G22 -> 0 | E13: =Profile!H22 -> 0 | F13: 0 | G13: =Profile!I22 -> 0 | H13: =Profile!J22 -> 0 | I13: 0 | J13: =Profile!K22 -> 0 | K13: 0 | L13: =Profile!L22 -> 0
B14: ;ksx | C14: =C13+C10+C9+C8+C11+C12 -> 0 | D14: =D13+D10+D9+D8+D11+D12 -> 0 | E14: 0 | F14: =F13+F10+F9+F8+F11+F12 -> 0 | G14: =G13+G10+G9+G8+G11+G12 -> 0 | H14: =H13+H10+H9+H8+H11+H12 -> 0 | I14: =I13+I10+I9+I8+I11+I12 -> 0 | J14: =J13+J10+J9+J8+J11+J12 -> 0 | K14: =K13+K10+K9+K8+K11+K12 -> 0 | L14: =L13+L10+L9+L8+L11+L12 -> 0
L18: =Profile!A3 -> lhchbZvks
L19: =Profile!A4 -> lexz f'k{kk
G20: rS;kj drkZ %& | H20: =Profile!G6 -> dqynhi dqekj | L20: =Profile!A5 -> chdkusj
H21: =Profile!$I$6 -> 9799001169 | L21: =Profile!$F$4 -> 2405

Sheet P1
A1: =Profile!$A$39 -> dk;kZy; %& | C1: =Profile!$D$39 -> lhchbZvks chdkusj
A2: izi= 1 | F2: ctV gSM | G2: =Profile!$C$3 -> 2202-02-109-01-00
A3: dk;kZy; v/;{k MhMhvks uke %& | D3: =Profile!$G$4 -> izHkkr 'kekZ | F3: =Profile!$I$4 -> 9414318727
A4: ys[kk en | C4: 01 laosru dk x.ku @ ekax izi= | F4: =Profile!$K$39 -> LVsV Q.M | H4: jkf'k yk[kksa esa
A5: Ø-la- | B5: vkWfQl vkbZ-Mh- | C5: fo|ky; dk uke | D5: forh; o"kZ 2024&25 esa laosru esa vkaCkfVr jkf'k | E5: 07@24 rd dk okLrfod O;; | F5: 08@24 ls 03@25 rd gksus okyk vuqekfur O;; | G5: forh; o"kZ esa gksus okyk dqy O;; | H5: o"kZ 2024&54 vfrfjDr ds fy, vko';drk
G6: ;ksx dkWye ¼5$6½ | H6: ;ksx dkWye ¼4&7½
A7: 1 | B7: 2 | C7: 3 | D7: 4 | E7: 5 | F7: 6 | G7: 7 | H7: 8
A8: 1 | B8: =Profile!$G$38 -> 2405 | C8: =Profile!$D$39 -> lhchbZvks chdkusj | D8: ='rrr 09'!$G$19 -> 0 | E8: ='rrr 09'!$I$19 -> 155000 | F8: ='rrr 09'!$K$19 -> 679182 | G8: =E8+F8 -> 834182 | H8: =-(D8+E8-G8) -> 679182
E10: rS;kj drkZ %& | F10: =Profile!$G$6 -> dqynhi dqekj
F11: =Profile!$I$6 -> 9799001169 | G11: =Profile!A3 -> lhchbZvks
G12: =Profile!A4 -> lexz f'k{kk | H12: =Profile!B4 -> 0
G13: =Profile!A5 -> chdkusj | H13: =Profile!B5 -> 0
G14: =Profile!$F$4 -> 2405

Sheet L-1-2
B1: =Profile!A39 -> dk;kZy; %& | C1: =Profile!D39 -> lhchbZvks chdkusj
A2: v/;kid ysoy&1 o ysoy&2 Lohd`r] dk;Zjr o fjDr inks dk fooj.k | F2: =Profile!C3 -> 2202-02-109-01-00
A3: en 2202 ukWu Iyku | C3: o"kZ | D3: =Profile!O39 -> RE 2024-2025 | E3: o vkxkeh o"kZ | G3: =Profile!N38 -> BE 2025-2026
A4: ys[kk 'kh"kZd ¼foLr`r 'kh"kZ½ | B4: en | C4: in uke | D4: fo"k; | E4: Lohd`r | F4: dk;Zjr | G4: fjDr | H4: Lohd`r ;ksx
A5: vjktif=r | B5: =F2 -> 2202-02-109-01-00 | C5: v/;kid ysoy&1 | D5: & | E5: 1 | F5: 1 | G5: =E5-F5 -> 0 | H5: =E5+E7+E6 -> 1
A6: vjktif=r | B6: 2202-02-109-01-00 | C6: v/;kid ysoy&1 | D6: & | E6: 0 | F6: 0 | G6: =E6-F6 -> 0
A7: vjktif=r | B7: =B6 -> 2202-02-109-01-00 | C7: v/;kid ysoy&1 | D7: & | F7: 0 | G7: =E7-F7 -> 0
A8: vjktif=r | B8: =B5 -> 2202-02-109-01-00 | C8: v/;kid ysoy&2 | D8: vaxzsth | E8: 0 | F8: 0 | G8: =E8-F8 -> 0 | H8: =E8+E9+E10+E11+E12+E13 -> 0
A9: vjktif=r | B9: =B5 -> 2202-02-109-01-00 | D9: fgUnh | E9: 0 | F9: 0 | G9: 0
A10: vjktif=r | B10: =B9 -> 2202-02-109-01-00 | D10: xf.kr@foKku | E10: 0 | F10: 0 | G10: 0
A11: vjktif=r | B11: =B10 -> 2202-02-109-01-00 | D11: lkekftd foKku | E11: 0 | F11: 0 | G11: 0
A12: vjktif=r | B12: =B11 -> 2202-02-109-01-00 | D12: iatkch | E12: 0 | F12: 0 | G12: 0
A13: vjktif=r | B13: =B12 -> 2202-02-109-01-00 | D13: laLd`r | E13: 0 | F13: 0 | G13: 0
A14: dqy | E14: =E5+E7+E8+E9+E10+E11+E12+E13+E6 -> 1 | F14: =F5+F7+F8+F9+F10+F11+F12+F13+F6 -> 1 | G14: 0 | H14: 1
B16: =Profile!C3 -> 2202-02-109-01-00 | F16: ='P3'!J35 -> lhchbZvks
F17: ='P3'!J36 -> lexz f'k{kk | G17: ='P3'!K36 -> 0 | H17: ='P3'!L36 -> 0
F18: ='P3'!J37 -> chdkusj | G18: ='P3'!K37 -> 0 | H18: ='P3'!L37 -> 0

Sheet P3
A1: =Profile!A39 -> dk;kZy; %& | D1: =Profile!D39 -> lhchbZvks chdkusj
A2: ¼v½ fu;fer Lohd`r inks dk fooj.k | I2: ctV gSM | J2: =Profile!$C$3 -> 2202-02-109-01-00
A3: ys[kk dk 'kh"kZ nh?kZ 'kh"kZ@ minh?kZ 'kh"kZ@ y?kq'kh"kZ@ mi'kh"kZ | B3: ukWuIyku @ Iyku @ lh-,l-,l- | C3: in uke | D3: ysoy@ xzsM is | E3: Lohd`r inksa dh la[;k ¼fnukad 01-04-2023 dh fLFkfr½ | F3: pkyw o"kZ 2020&2021 esa Lohd`r u;s inksa dh la[;k | G3: pkyw o"kZ 2020&2021 esa lekIr fd;s x;s inksa dh la[;k | H3: orZeku inkas dh la[;k ¼dkWye la[;k 5+6-7½ | I3: fu;fer dk;Zjr | K3: 31-08-2023 dks fjDr inksa dh la[;k | L3: fnukad ftlls in fjDr gS
I4: 1tuojh 2004 ls iwoZ fu;qfDr | J4: 1tuojh 2004 ds Ik'pkr fu;qfDr
A5: 1 | B5: 2 | C5: 3 | D5: 4 | E5: 5 | F5: 6 | G5: 7 | H5: 8 | I5: 9 | J5: 10 | K5: 11 | L5: 12
A6: =Profile!A47 -> jktif=r | B6: =Profile!$K$39 -> LVsV Q.M | C6: =Profile!G47 -> iz/kkukpk;Z | D6: =Profile!I47 -> 16 | E6: 1 | F6: 0 | G6: 0 | H6: =SUM(E6:G6) -> 1 | I6: 1 | J6: 0 | K6: =H6-I6-J6 -> 0
A7: =Profile!A48 -> jktif=r | B7: =Profile!$K$39 -> LVsV Q.M | C7: =Profile!G48 -> O;k[;krk | D7: =Profile!I48 -> 12 | E7: 1 | F7: 0 | G7: 0 | H7: =SUM(E7:G7) -> 1 | I7: 1 | J7: 0 | K7: =H7-I7-J7 -> 0
A8: =Profile!A49 -> jktif=r | B8: =Profile!$K$39 -> LVsV Q.M | C8: =Profile!G49 -> O;k[;krk | D8: =Profile!I49 -> 12 | E8: 1 | F8: 0 | G8: 0 | H8: =SUM(E8:G8) -> 1 | I8: 1 | J8: 0 | K8: 0
A9: =Profile!A50 -> jktif=r | B9: =Profile!$K$39 -> LVsV Q.M | C9: =Profile!G50 -> O;k[;krk | D9: =Profile!I50 -> 12 | E9: 1 | F9: 0 | G9: 0 | H9: 1 | I9: 1 | J9: 0 | K9: 0
A10: =Profile!A51 -> jktif=r | B10: =Profile!$K$39 -> LVsV Q.M | C10: =Profile!G51 -> O;k[;krk | D10: =Profile!I51 -> 12 | E10: 0 | F10: 0 | G10: 0 | H10: 0 | I10: 0 | J10: 0 | K10: 0
A11: =Profile!A52 -> jktif=r | B11: =Profile!$K$39 -> LVsV Q.M | C11: =Profile!G52 -> O;k[;krk | D11: =Profile!I52 -> 12 | E11: 0 | F11: 0 | G11: 0 | H11: 0 | I11: 0 | J11: 0 | K11: 0
A12: =Profile!A53 -> jktif=r | B12: =Profile!$K$39 -> LVsV Q.M | C12: =Profile!G53 -> O;k[;krk | D12: =Profile!I53 -> 12 | E12: 1 | F12: 1 | G12: 1 | H12: 3 | I12: 0 | J12: 0 | K12: 3
A13: =Profile!A54 -> vjktif=r | B13: =Profile!$K$39 -> LVsV Q.M | C13: =Profile!G54 -> ofj"B v/;kid | D13: =Profile!I54 -> 11 | E13: 0 | F13: 0 | G13: 0 | H13: 0 | I13: 0 | J13: 0 | K13: 0
A14: =Profile!A55 -> vjktif=r | B14: =Profile!$K$39 -> LVsV Q.M | C14: =Profile!G55 -> ofj"B v/;kid | D14: =Profile!I55 -> 11 | E14: 0 | F14: 0 | G14: 0 | H14: 0 | I14: 0 | J14: 0 | K14: 0
A15: =Profile!A56 -> vjktif=r | B15: =Profile!$K$39 -> LVsV Q.M | C15: =Profile!G56 -> ofj"B v/;kid | D15: =Profile!I56 -> 11 | E15: 0 | F15: 0 | G15: 0 | H15: 0 | I15: 0 | J15: 0 | K15: 0
A16: =Profile!A57 -> vjktif=r | B16: =Profile!$K$39 -> LVsV Q.M | C16: =Profile!G57 -> ofj"B v/;kid | D16: =Profile!I57 -> 11 | E16: 0 | F16: 0 | G16: 0 | H16: 0 | I16: 0 | J16: 0 | K16: 0
A17: =Profile!A58 -> vjktif=r | B17: =Profile!$K$39 -> LVsV Q.M | C17: =Profile!G58 -> ofj"B v/;kid | D17: =Profile!I58 -> 11 | E17: 0 | F17: 0 | G17: 0 | H17: 0 | I17: 0 | J17: 0 | K17: 0
A18: =Profile!A59 -> vjktif=r | B18: =Profile!$K$39 -> LVsV Q.M | C18: =Profile!G59 -> ofj"B v/;kid | D18: =Profile!I59 -> 11 | E18: 0 | F18: 0 | G18: 0 | H18: 0 | I18: 0 | J18: 0 | K18: 0
A19: =Profile!A60 -> vjktif=r | B19: =Profile!$K$39 -> LVsV Q.M | C19: =Profile!G60 -> v/;kid | D19: =Profile!I60 -> 10 | E19: 1 | F19: 0 | G19: 0 | H19: 1 | I19: 1 | J19: 0 | K19: 0
A20: =Profile!A61 -> vjktif=r | B20: =Profile!$K$39 -> LVsV Q.M | C20: =Profile!G61 -> v/;kid | D20: =Profile!I61 -> 10 | E20: 0 | F20: 0 | G20: 0 | H20: 0 | I20: 0 | J20: 0 | K20: 0
A21: =Profile!A62 -> vjktif=r | B21: =Profile!$K$39 -> LVsV Q.M | C21: =Profile!G62 -> v/;kid | D21: =Profile!I62 -> 10 | E21: 0 | F21: 0 | G21: 0 | H21: 0 | I21: 0 | J21: 0 | K21: 0
A22: =Profile!A63 -> vjktif=r | B22: =Profile!$K$39 -> LVsV Q.M | C22: =Profile!G63 -> 'kk0f'k{kd | D22: =Profile!I63 -> 10 | E22: 0 | F22: 0 | G22: 0 | H22: 0 | I22: 0 | J22: 0 | K22: 0
A23: =Profile!A64 -> vjktif=r | B23: =Profile!$K$39 -> LVsV Q.M | C23: =Profile!G64 -> dEi;wVj vuqns'kd | D23: =Profile!I64 -> 8 | E23: 0 | F23: 0 | G23: 0 | H23: 0 | I23: 0 | J23: 0 | K23: 0
A24: =Profile!A65 -> vjktif=r | B24: =Profile!$K$39 -> LVsV Q.M | C24: =Profile!G65 -> iz'kklfud vf/kdkjh | D24: =Profile!I65 -> 15 | E24: 1 | F24: 0 | G24: 0 | H24: 1 | I24: 0 | J24: 1 | K24: 0
A25: =Profile!A66 -> vjktif=r | B25: =Profile!$K$39 -> LVsV Q.M | C25: =Profile!G66 -> vfrfjDr iz0v0 | D25: =Profile!I66 -> 11 | E25: 0 | F25: 0 | G25: 0 | H25: 0 | I25: 0 | J25: 0 | K25: 0
A26: =Profile!A67 -> vjktif=r | B26: =Profile!$K$39 -> LVsV Q.M | C26: =Profile!G67 -> lgk;d iz0v0 | D26: =Profile!I67 -> 10 | E26: 0 | F26: 0 | G26: 0 | H26: 0 | I26: 0 | J26: 0 | K26: 0
A27: =Profile!A68 -> vjktif=r | B27: =Profile!$K$39 -> LVsV Q.M | C27: =Profile!G68 -> ofj"B lgk;d | D27: =Profile!I68 -> 8 | E27: 0 | F27: 0 | G27: 0 | H27: 0 | I27: 0 | J27: 0 | K27: 0
A28: =Profile!A69 -> vjktif=r | B28: =Profile!$K$39 -> LVsV Q.M | C28: =Profile!G69 -> dfu"B lgk;d | D28: =Profile!I69 -> 5 | E28: 0 | F28: 0 | G28: 0 | H28: 0 | I28: 0 | J28: 0 | K28: 0
A29: =Profile!A70 -> vjktif=r | B29: =Profile!$K$39 -> LVsV Q.M | C29: =Profile!G70 -> lgk;d deZpkjh | D29: =Profile!I70 -> 1 | E29: 0 | F29: 0 | G29: 0 | H29: 0 | I29: 0 | J29: 0 | K29: 0
A30: =Profile!A71 -> vjktif=r | B30: =Profile!$K$39 -> LVsV Q.M | C30: =Profile!G71 -> lgk;d deZpkjh | D30: =Profile!I71 -> 1 | E30: 0 | F30: 0 | G30: 0 | H30: 0 | I30: 0 | J30: 0 | K30: =H130-I130-J30 -> 0
A31: =Profile!A72 -> vjktif=r | B31: =Profile!$K$39 -> LVsV Q.M | C31: =Profile!G72 -> lgk;d deZpkjh | D31: =Profile!I72 -> 1 | E31: 0 | F31: 0 | G31: 0 | H31: 0 | I31: 0 | J31: 0 | K31: 0
C33: dqy | E33: =SUM(E6:E32) -> 7 | F33: =SUM(F6:F32) -> 1 | G33: 1 | H33: 9 | I33: 5 | J33: 1 | K33: 3
J35: =Profile!A3 -> lhchbZvks
J36: =Profile!A4 -> lexz f'k{kk | K36: =Profile!B4 -> 0
J37: =Profile!A5 -> chdkusj | K37: =Profile!B5 -> 0
J38: ='P1'!$G$14 -> 2405

Sheet retierment
A1: =Profile!A39 -> dk;kZy; %& | D1: =Profile!D39 -> lhchbZvks chdkusj
A2: izi= 12 , | G2: ctV gSM | H2: =Profile!$C$3 -> 2202-02-109-01-00
A3: osru J`a[kyk 1 ls 6 rd lsokfuo`r gksus okys dkfeZd dk fooj.k
A4: en 2202 ukWu Iyku | D4: o"kZ | E4: =Profile!O39 -> RE 2024-2025 | F4: o vkxkeh o"kZ | H4: =Profile!M39 -> 2025&2026
A5: Ø-la | B5: ctV en | C5: deZpkjh dk uke | D5: osru Ja`[kyk | E5: ossru ysoy | F5: in uke | G5: lsokfuo`r fnukad | H5: lsokfuo`r deZpkjh dh lsokfuo`fr ds le; ns; mikftZr vodk'k | I5: dkfeZd dk lsokfuo`fr ds le; ewy osru | J5: lsokfuo`r deZpkjh dh jde
A6: 1 | B6: Iyku | C6: izHkkr 'kekZ | E6: ysoy&17 | F6: iz/kkukpk;Z | G6: 31-12-2021 | H6: 300 | I6: 110500 | J6: =H6*I6/30 -> 1105000
A7: 2 | B7: ukWu Iyku ckfydk | J7: =H7*I7/30 -> 0
A8: 3 | B8: ukWu Iyku | J8: 0
A9: 4 | B9: ukWu Iyku | J9: 0
C11: =Profile!C3 -> 2202-02-109-01-00 | H11: =Profile!A3 -> lhchbZvks
H12: =Profile!A4 -> lexz f'k{kk | I12: =Profile!B4 -> 0
H13: =Profile!A5 -> chdkusj | I13: =Profile!B5 -> 0
H14: =Profile!$F$4 -> 2405

Sheet FIX PAY
C1: uke dk;kZy;& | D1: =Profile!$C$1 -> lhchbZvks chdkusj
E2: lafonk osru ij fu;qä dkfeZdksa dk fooj.k | G2: vkWfQl vkbZMh& | H2: =Profile!$F$4 -> 2405
C3: ys[kk 'kh"kZd& | D3: =Profile!C3 -> 2202-02-109-01-00
E4: laosru
C5: ekax la[;k | D5: =Profile!$C$11 -> 20 | F5: Ldhe dk uke | G5: =Profile!$C$10 -> LVsV Q.M
B7: Ø-la- | C7: uke dkfeZd | D7: in uke | E7: tUe frfFk | F7: fu;qfä frfFk | G7: ekfld ekuns; | H7: 12 ekg dk ekuns; | I7: vkxkeh o"kZ es 12 ekg dk ekuns;
B8: 1 | C8: 2 | D8: 3 | E8: 4 | F8: 5 | G8: 6 | H8: 7 | I8: 8
B9: =Profile!C94 -> 1 | C9: =Profile!D94 ->  | D9: =Profile!E94 ->  | E9: =Profile!F94 ->  | F9: =Profile!G94 ->  | G9: =Profile!H94 -> 0 | H9: =Profile!I94 -> 0 | I9: =Profile!J94 -> 0
B10: =Profile!C95 -> 2 | C10: =Profile!D95 ->  | D10: =Profile!E95 ->  | E10: =Profile!F95 ->  | F10: =Profile!G95 ->  | G10: =Profile!H95 -> 0 | H10: =Profile!I95 -> 0 | I10: =Profile!J95 -> 0
B11: =Profile!C96 -> 3 | C11: =Profile!D96 ->  | D11: =Profile!E96 ->  | E11: =Profile!F96 ->  | F11: =Profile!G96 ->  | G11: =Profile!H96 -> 0 | H11: =Profile!I96 -> 0 | I11: =Profile!J96 -> 0
B12: =Profile!C97 -> 4 | C12: =Profile!D97 ->  | D12: =Profile!E97 ->  | E12: =Profile!F97 ->  | F12: =Profile!G97 ->  | G12: =Profile!H97 -> 0 | H12: =Profile!I97 -> 0 | I12: =Profile!J97 -> 0
B13: =Profile!C98 -> 5 | C13: =Profile!D98 ->  | D13: =Profile!E98 ->  | E13: =Profile!F98 ->  | F13: =Profile!G98 ->  | G13: =Profile!H98 -> 0 | H13: =Profile!I98 -> 0 | I13: =Profile!J98 -> 0
B14: =Profile!C99 -> 6 | C14: =Profile!D99 ->  | D14: =Profile!E99 ->  | E14: =Profile!F99 ->  | F14: =Profile!G99 ->  | G14: =Profile!H99 -> 0 | H14: =Profile!I99 -> 0 | I14: =Profile!J99 -> 0
B15: =Profile!C100 -> 7 | C15: =Profile!D100 ->  | D15: =Profile!E100 ->  | E15: =Profile!F100 ->  | F15: =Profile!G100 ->  | G15: =Profile!H100 -> 0 | H15: =Profile!I100 -> 0 | I15: =Profile!J100 -> 0
B16: =Profile!C101 -> 8 | C16: =Profile!D101 ->  | D16: =Profile!E101 ->  | E16: =Profile!F101 ->  | F16: =Profile!G101 ->  | G16: =Profile!H101 -> 0 | H16: =Profile!I101 -> 0 | I16: =Profile!J101 -> 0
B17: =Profile!C102 -> 9 | C17: =Profile!D102 ->  | D17: =Profile!E102 ->  | E17: =Profile!F102 ->  | F17: =Profile!G102 ->  | G17: =Profile!H102 -> 0 | H17: =Profile!I102 -> 0 | I17: =Profile!J102 -> 0
B18: =Profile!C103 -> 10 | C18: =Profile!D103 ->  | D18: =Profile!E103 ->  | E18: =Profile!F103 ->  | F18: =Profile!G103 ->  | G18: =Profile!H103 -> 0 | H18: =Profile!I103 -> 0 | I18: =Profile!J103 -> 0
D19: =Profile!E104 -> TOTAL | G19: =Profile!H104 -> 0 | H19: =Profile!I104 -> 0 | I19: =Profile!J104 -> 0
F22: =Profile!A3 -> lhchbZvks
B23: rS;kj drkZ %& | C23: =Profile!G6 -> dqynhi dqekj | F23: =Profile!A4 -> lexz f'k{kk
F24: =Profile!A5 -> chdkusj
F25: =Profile!$F$4 -> 2405

Sheet CHALAN
G1: pkyku fooj.k
A2: fo|ky; dk uke & | D2: jktdh; mPp ek/;fed fo|ky; pkSxkbZa Vksad
A3: ys[kk 'kh"kZd& | C3: 2202 | D3: lkekU; f'k{kk | G3: vkWfQl vkbZMh& | H3: 27306
C4: 2 | D4: ek/;fed f'k{kk
C5: 109 | D5: jktdh; mPp ek/;fed fo|ky;
C6: 27 | D6: yM+dksa ds fo|ky;
C7: 1 | D7: yM+dksa ds fo|ky;
A9: ekax la[;k | C9: 24 | G9: Ldhe dk uke | H9: LVsV Q.M
A11: Ø- la- | B11: pkyu uEcj o fnukad | C11: vizsy 19 ls ekpZ 20 | G11: pkyu uEcj o fnukad | H11: vxLr 19 ls ekpZ 20 | L11: pkyu uEcj o fnukad | M11: vizsy 20 ls tqykbZ 20
C12: f'k{k.k Qhl ,oa vU; Qhlsa | D12: vuqi;ksxh lkekuksa ls vk; | E12: vf/kd Hkqxrku ls olwyh | F12: fofo/k | H12: f'k{k.k Qhl ,oa vU; Qhlsa | I12: vuqi;ksxh lkekuksa ls vk; | J12: vf/kd Hkqxrku ls olwyh | K12: fofo/k | M12: f'k{k.k Qhl ,oa vU; Qhlsa | N12: vuqi;ksxh lkekuksa ls vk; | O12: vf/kd Hkqxrku ls olwyh | P12: fofo/k
C13: 10 | D13: 20 | E13: 30 | F13: 40 | H13: 50 | I13: 60 | J13: 70 | K13: 80 | M13: 90 | N13: 100 | O13: 110 | P13: 120
B28: TOTAL | C28: 10 | D28: 20 | E28: 30 | F28: 40 | H28: 50 | I28: 60 | J28: 70 | K28: 80 | M28: 90 | N28: 100 | O28: 110 | P28: 120
M30: =Profile!A3 -> lhchbZvks
M31: =Profile!A4 -> lexz f'k{kk
M32: =Profile!A5 -> chdkusj
M33: =Profile!$F$4 -> 2405

Sheet bank ac SCHOOL
A1: ¼c½ cSad [kkrks fLFkfr dk fooj.k
A2: ='P3'!$D$1 -> lhchbZvks chdkusj | F2: foHkkx dk uke %& f'k{kk foHkkx
A4: cSd rFkk 'kk[kk dk uke ¼bZ,Qlh dksM½ | B4: cSd [kkrs dk uke e; [kkrk la[;k | C4: in uke ftlds uke ls [kkrk gS | D4: foHkkxh; @ xSj foHkkxh; | E4: 01-04-2019 dks vo'ks"k jkf'k | G4: 2019&2020 | J4: 31-08-2019 dks 'ks"k jkf'k ¼5$6&7½
G5: gLrkUrfjr jkf'k | H5: fnukad 31 vxLr rd O;; jkf'k
A6: 1 | B6: 2 | C6: 3 | D6: 4 | E6: 5 | G6: 6 | H6: 7 | J6: 8
A7: vkS-ch-lh 15tSM vksvkjchlh01100506 | B7: RAJKIYE MADHYAMIK VIDHALYA 15Z 0506204 0000210 | C7: iz/kkukpk;Z | D7: foHkkxh; fo|kFkhZ dks"k | E7: cash | F7: 0 | G7: 205 | H7: 0 | J7: =F7+G7-H7 -> 205
E8: bank | F8: 2991.65 | G8: =11432-205 -> 11227 | H8: 1265 | J8: =F8+G8-H8 -> 12953.65
E9: F.D. | F9: 0 | G9: 0 | H9: 0 | J9: 0
E10: Total | F10: =F9+F8+F7 -> 2991.65 | G10: =G9+G8+G7 -> 11432 | H10: 1265 | I10: 0 | J10: 13158.65
A11: vkS-ch-lh 15tSM vksvkjchlh01100506 | B11: RA.MA.VIDYALA VKASH KOSH 0506204 0000080 | C11: iz/kkukpk;Z | D11: foHkkxh; fodkl dks"k | E11: cash | F11: 0 | G11: 0 | H11: 0 | J11: =F11+G11-H11 -> 0
E12: bank | F12: 26604 | G12: 15234 | H12: 9990 | J12: 31848
E13: F.D. | F13: 0 | G13: 0 | H13: 0 | J13: 0
E14: Total | F14: =F13+F12+F11 -> 26604 | G14: =G13+G12+G11 -> 15234 | H14: =H13+H12+H11 -> 9990 | I14: =I13+I12+I11 -> 0 | J14: 31848
G17: =Profile!A3 -> lhchbZvks
G18: =Profile!A4 -> lexz f'k{kk | H18: =Profile!B4 -> 0
G19: =Profile!A5 -> chdkusj | H19: =Profile!B5 -> 0
G20: =Profile!$F$4 -> 2405

Sheet R01
A1: ='P3'!$D$1 -> lhchbZvks chdkusj
A2: izi=
A3: =Profile!$A$38 -> o"kZ 2025&2026 ds fy, jsUt ds vuqlkj laosru dh jkf'k
A4: Ø-la- | B4: in dk uke | C4: ,u-ih-,l-] lkekU;] fjDr | D4: xzsM is | E4: ,d ekg dh jkf'k | F4: 12 ekg dh jkf'k | G4: 3 izfr'kr osru o`f) | H4: x.kuk osru o`f)
A5: 1 | B5: =Profile!G47 -> iz/kkukpk;Z | C5: lkekU; | D5: =Profile!I47 -> 16 | E5: =Profile!J47 -> 42500 | F5: =E5*12 -> 510000 | G5: =Profile!P47 -> 1300 | H5: =ROUNDUP((E5)*(3%),0) -> 1275
A6: 2 | B6: =Profile!G48 -> O;k[;krk | C6: lkekU; | D6: =Profile!I48 -> 12 | E6: =Profile!J48 -> 0 | F6: =E6*12 -> 0 | G6: =Profile!P48 -> 0 | H6: =ROUNDUP((E6)*(3%),0) -> 0
A7: 3 | B7: =Profile!G49 -> O;k[;krk | C7: lkekU; | D7: =Profile!I49 -> 12 | E7: =Profile!J49 -> 0 | F7: 0 | G7: =Profile!P49 -> 0 | H7: 0
A8: 4 | B8: =Profile!G50 -> O;k[;krk | C8: ,uih,l | D8: =Profile!I50 -> 12 | E8: =Profile!J50 -> 0 | F8: 0 | G8: =Profile!P50 -> 0 | H8: 0
A9: 5 | B9: =Profile!G51 -> O;k[;krk | D9: =Profile!I51 -> 12 | E9: =Profile!J51 -> 0 | F9: 0 | G9: =Profile!P51 -> 0 | H9: 0
A10: 6 | B10: =Profile!G52 -> O;k[;krk | D10: =Profile!I52 -> 12 | E10: =Profile!J52 -> 0 | F10: 0 | G10: =Profile!P52 -> 0 | H10: 0
A11: 7 | B11: =Profile!G53 -> O;k[;krk | D11: =Profile!I53 -> 12 | E11: =Profile!J53 -> 0 | F11: 0 | G11: =Profile!P53 -> 0 | H11: 0
A12: 1 | B12: =Profile!G54 -> ofj"B v/;kid | C12: lkekU; | D12: =Profile!I54 -> 11 | E12: =Profile!J54 -> 0 | F12: 0 | G12: =Profile!P54 -> 0 | H12: 0
A13: 2 | B13: =Profile!G55 -> ofj"B v/;kid | C13: ,u-ih-,l- fQDl | D13: =Profile!I55 -> 11 | E13: =Profile!J55 -> 0 | F13: 0 | G13: =Profile!P55 -> 0 | H13: 0
A14: 3 | B14: =Profile!G56 -> ofj"B v/;kid | C14: fjDr | D14: =Profile!I56 -> 11 | E14: =Profile!J56 -> 0 | F14: 0 | G14: =Profile!P56 -> 0 | H14: 0
A15: 4 | B15: =Profile!G57 -> ofj"B v/;kid | C15: fjDr | D15: =Profile!I57 -> 11 | E15: =Profile!J57 -> 0 | F15: =E15*12 -> 0 | G15: =Profile!P57 -> 0
A16: 12 | B16: =Profile!G58 -> ofj"B v/;kid | D16: =Profile!I58 -> 11 | E16: =Profile!J58 -> 0 | F16: 0 | G16: =Profile!P58 -> 0
A17: 13 | B17: =Profile!G59 -> ofj"B v/;kid | D17: =Profile!I59 -> 11 | E17: =Profile!J59 -> 0 | F17: 0 | G17: =Profile!P59 -> 0
A18: 5 | B18: =Profile!G60 -> v/;kid | C18: lkekU; | D18: =Profile!I60 -> 10 | E18: =Profile!J60 -> 0 | F18: 0 | G18: =Profile!P60 -> 0
A19: 6 | B19: =Profile!G61 -> v/;kid | C19: ,u-ih-,l- | D19: =Profile!I61 -> 10 | E19: =Profile!J61 -> 0 | F19: =E19*12 -> 0 | G19: =Profile!P61 -> 0
A20: 7 | B20: =Profile!G62 -> v/;kid | C20: fjDr | D20: =Profile!I62 -> 10 | E20: =Profile!J62 -> 0 | F20: 0 | G20: =Profile!P62 -> 0
A21: 8 | B21: =Profile!G63 -> 'kk0f'k{kd | C21: lkekU; | D21: =Profile!I63 -> 10 | E21: =Profile!J63 -> 0 | F21: 0 | G21: =Profile!P63 -> 0
A22: 9 | B22: =Profile!G64 -> dEi;wVj vuqns'kd | C22: ,u-ih-,l- | D22: =Profile!I64 -> 8 | E22: =Profile!J64 -> 0 | F22: 0 | G22: =Profile!P64 -> 0
A23: 19 | B23: =Profile!G65 -> iz'kklfud vf/kdkjh | D23: =Profile!I65 -> 15 | E23: =Profile!J65 -> 0 | F23: 0 | G23: =Profile!P65 -> 0 | H23: 0
A24: 10 | B24: =Profile!G66 -> vfrfjDr iz0v0 | C24: lkekU; | D24: =Profile!I66 -> 11 | E24: =Profile!J66 -> 0 | F24: 0 | G24: =Profile!P66 -> 0 | H24: 0
A25: 21 | B25: =Profile!G67 -> lgk;d iz0v0 | D25: =Profile!I67 -> 10 | E25: =Profile!J67 -> 0 | F25: 0 | G25: =Profile!P67 -> 0 | H25: 0
A26: 11 | B26: =Profile!G68 -> ofj"B lgk;d | C26: ,u-ih-,l- | D26: =Profile!I68 -> 8 | E26: =Profile!J68 -> 0 | F26: 0 | G26: =Profile!P68 -> 0
A27: 12 | B27: =Profile!G69 -> dfu"B lgk;d | C27: ,u-ih-,l- | D27: =Profile!I69 -> 5 | E27: =Profile!J69 -> 0 | F27: 0 | G27: =Profile!P69 -> 0
A28: 13 | B28: =Profile!G70 -> lgk;d deZpkjh | C28: lkekU; | D28: =Profile!I70 -> 1 | E28: =Profile!J70 -> 0 | F28: 0 | G28: =Profile!P70 -> 0
A29: 14 | B29: =Profile!G71 -> lgk;d deZpkjh | C29: ,u-ih-,l- | D29: =Profile!I71 -> 1 | E29: =Profile!J71 -> 0 | F29: 0 | G29: =Profile!P71 -> 0
B30: =Profile!G72 -> lgk;d deZpkjh | D30: =Profile!I72 -> 1 | E30: =Profile!J72 -> 0 | F30: 0 | G30: =Profile!P72 -> 0
C31: dqy | E31: =SUM(E5:E30) -> 42500 | F31: =SUM(F5:F30) -> 510000 | G31: =SUM(G5:G30) -> 1300
C33: lkekU; | E33: =E12+E18+E21+E24+E28 -> 0 | F33: 0 | G33: =G12+G18+G21+G24+G28 -> 0
B34: lk0osru o`f) 8 ekg | E34: =G33*8 -> 0
C35: ,uih,l | E35: =E13+E19+E22+E26+E27+E29 -> 0 | F35: 0 | G35: =G13+G19+G22+G26+G27+G29 -> 0
B36: lk0osru o`f) 8 ekg ,uih,l | E36: =G35*8 -> 0
C37: dqy | E37: =E33+E35 -> 0 | F37: 0 | G37: =G33+G35 -> 0
B38: lk0osru o`f) 8 ekg dqy | E38: =E36+E34 -> 0
C40: egk;ksx | E40: =F37+E38 -> 0

Sheet Sheet1 (hidden)
A1: dk;kZy;& | C1: jktdh; mPp ek/;fed fo|ky; pkSxkbZa Vksad
A2: eksgj& | C2: Budget Estemate
A3: ihZbZbZvks 10tSM ,oa iz/kkukpk;Z | F3: vkWfQl vkbZMh | G3: uke MhMhvks | I3: uEcj
A4: jktdh; mPp ek/;fed fo|ky; | F4: 2405 | G4: izHkkr 'kekZ | I4: 9414318727
A5: 15tSM Jhxaxkuxj | F5: rS;kj drkZ | G5: lqfer fxjh | I5: 9414631519
A6: ctV en eq[; 'kh"kZ | C6: 2202 | D6: lkekU; f'k{kk
C7: 2 | D7: ek/;fed f'k{kk
C8: 109 | D8: jktdh; mPp ek/;fed fo|ky;
C9: 27 | D9: yM+dksa ds fo|ky;
C10: 1 | D10: yM+dksa ds fo|ky;
A13: Ldhe dk uke | F13: LVsV Q.M
A14: ekax la[;k | C14: 24 | H14: Arear Month | I14: 8
A15: ctV Lohd`fr esa fo|ky; dh Ø-la- | F15: 14 | G15: egakbZ HkÙk nj | H15: 17 | I15: DA Arr. | J15: 0 | K15: HRA | L15: 8
A16: xr rhu o"ksksZa ds vk; ,oa O;; dk fooj.k | B16: gsM | F16: 2017-18 | G16: 2018-19 | H16: 2019-20 | I16: 08/19 to 03/20 | J16: 04/20 to 07/20 | K16: la'kksf/kr vuqeku 2020&21 | L16: vk; vuqeku 2021&2022
A17: vk;
A18: f'k{k.k Qhl o vU; Qhl | B18: 0202&02 | C18: 102 | D18: 1 | E18: 0 | F18: 110 | G18: 200 | H18: 210 | I18: 150 | J18: 90 | K18: 220 | L18: 230
A19: ikB~; iqLrdksa ls vk; | B19: 0202&02 | C19: 102 | D19: 2
A20: fofo/k | B20: 0202&02 | C20: 102 | D20: 3 | E20: 1
A21: vf/kd Hkqxrku dh olwyh | B21: 0202&02 | C21: 102 | D21: 3 | E21: 2
A22: vuqi;ksxh lkeku ds fuLrkj.k ls vk; | B22: 0202&02 | C22: 102 | D22: 5 | E22: 2
A23: O;; | C23: Lohd`r ctV 20&21 | F23: [kpksZa dk fooj.k | M23: O;; 04@20 ls 07@20
A24: en | B24: gsM | C24: dqy ;ksx | D24: jkT; fuf/k | E24: dsUnzh; lgk;rk | F24: 2017-18 | G24: 2018-19 | H24: 2019-20 | I24: 08/19 to 03/20 | J24: 04/20 to 07/20 | K24: lEHkkfor O;; 2020&21 | L24: dqy ;ksx | M24: jkT; fuf/k | N24: dsUnzh; lgk;rk
A25: laosru | B25: 1 | C25: =SUM(D25+E25) -> 2384000 | D25: 2384000 | E25: 0 | F25: 3783379 | G25: 4658460 | H25: 4432536 | I25: 2925894 | J25: 289407 | K25: 4652816 | L25: =SUM(J25+K25) -> 4942223 | M25: 289407 | N25: 0
A26: ;k=k O;; | B26: 3 | C26: 0 | D26: 0 | E26: 0 | F26: 0 | G26: 0 | H26: 18750 | I26: 18750 | J26: 0 | K26: 0 | L26: 0 | M26: 0 | N26: 0
A27: fpfdRlk O;; | B27: 4 | C27: 0 | L27: 0 | N27: 0
A28: dk;kZy; O;; | B28: 5 | C28: 0 | L28: 0 | N28: 0
A29: fdjk;k dj jk;fYV | B29: 9 | C29: 0 | L29: 0 | N29: 0
A30: e'khujh lkt lkeku | B30: 20 | C30: 0 | L30: 0 | N30: 0
A31: iqLrdky; | B31: 31 | C31: 0 | L31: 0 | N31: 0
A32: iz;ksx'kkyk | B32: 33 | C32: 0 | L32: 0 | N32: 0
A33: ofnZ;ka | B33: 37 | C33: 0 | L33: 0 | N33: 0
A34: vU; izHkkj | B34: 28 | C34: 0 | L34: 0 | N34: 0
A35: foHkkxh;lsokvksa ij fof'k"V O;; | B35: 57 | C35: 0 | L35: 0 | N35: 0
B37: Developed by- | N37: L-1
B38: Chaturbhuj Jat | F38: प्रधानाचार्य | N38: L-2
B39: Teacher GSSS Chogai | F39: प्रधानाध्यापक | I39: G | J39: M | K39: R | L39: C | M39: S | N39: L-3
F40: व्याख्याता | I40: NG | J40: F | K40: F | L40: W | M40: M | N40: L-4
F41: व्याख्याता शारीरिक शिक्षा | L41: H | N41: L-5
F42: पुस्तकालय अध्यक्ष ग्रेड I | N42: L-6
F43: वरिष्ठ अध्यापक | N43: L-7
F44: वरिष्ठ शारीरिक शिक्षक | N44: L-8
F45: पुस्तकालय अध्यक्ष ग्रेड II | N45: L-9
F46: अध्यापक ग्रेड III | N46: L-10
F47: प्रबोधक | N47: L-11
F48: शारीरिक शिक्षक | N48: L-12
F49: पुस्तकालय अध्यक्ष ग्रेड III | N49: L-13
F50: संस्थापन अधिकारी | N50: L-14
F51: प्रशासनिक अधिकारी | N51: L-15
F52: अतिरिक्त प्रशासनिक अधिकारी | N52: L-16
F53: सहायक प्रशासनिक अधिकारी | N53: L-17
F54: वरिष्ठ सहायक | N54: L-18
F55: कनिष्ठ सहायक | N55: L-19
F56: प्रयोग शाला सहायक | N56: L-20
F57: प्रयोग शाला सेवक | N57: L-21
F58: जमादार | N58: L-22
F59: सहायक कर्मचारी | N59: L-23
F60: ए सी बी ई ओ प्रथम | N60: L-24
F61: सहायक लेखाधिकारी प्रथम
F62: सहायक लेखाधिकारी द्वितीय
F63: कनिष्ठ लेखाकार
F64: अतिरिक्त जिला शिक्षा अधिकारी
F65: मुख्य जिला शिक्षा अधिकारी
F66: संयुक्त निदेशक स्कूल शिक्षा
F67: सी बी ई ओ
F68: प्रबोधक शारीरिक शिक्षक
F69: प्रशिक्षु शिक्षक
F70: व्याख्याता कृषि
F71: कृषि अध्यापक
F72: कृषि प्रमुख
F73: विशेष शिक्षक
F74: ए सी बी ई ओ दवितीय
